Workbook

Sheet ME7 TUNER WIZZARD SETTINGS (hidden)
E7: SETTINGS
E9: UPDATED ON: | H9: 8/17/2013 3:32:19 PM
E11: REVISION: | H11: 3439
E13: AUTHOR: | H13: Marius G. aka MasterJ

Sheet TITLE
I1: DONATE TO THE PROJECT (press a button below)
C2: WARNING! FOR NON-COMMERCIAL USE ONLY!
D6: TABLE OF CONTENTS
D8: 1) EEPROM MODDER
D9: 2) CODEWORDS CONVERTER
D10: 3) INJECTORS DATABASE
D11: 4) KRKTE CALCULATOR
D12: 5) FKKVS FIXER
D13: 6) KFMIRL ADVISER
D14: 7) KFMIOP CALCULATOR (16x16|11x16)
D15: 8) KFMIOP CALCULATOR (12x16|11x16)
D16: 9) KFZWOP|2 CONVERTER
D17: 10) LDRXN|LDRXNZK CALCULATOR
D18: 11) ANTILAG|LAUNCH CONTROL MODDER
D20: Author: Marius G. aka MasterJ | H20: =HYPERLINK("mailto:marius.guscius@vwklubas.lt", "<marius.guscius@vwklubas.lt>") -> <marius.guscius@vwklubas.lt>

Sheet EEPROM MODDER
U2: EEPROM OPERATIONS
C3: EEPROM MODDER by MASTERJ v1.1
U4: LOAD & SAVE EEPROM:
U6: CHECKSUMS: | Z6: 32 / 32
U8: EXTRA INFO: | X8: norrsuzxƒ©­¬­ | AE8: Æ»À¿ÀÄÌÄÜ48<B
U10: SKC KEY: | X10: 00000
C11: marius.guscius@vwklubas.lt
I14: <=== | K14: EDITABLE FIELDS!
C17: ORIGINAL EEPROM | V17: MODIFIED EEPROM
B18: 000 | C18: 5A | D18: 5A | E18: 10 | F18: 03 | G18: 78 | H18: 78 | I18: 00 | J18: 07 | K18: 02 | L18: 0F | M18: 01 | N18: 01 | O18: 08 | P18: 03 | Q18: 06 | R18: 0D | U18: 000 | V18: 5A | W18: 5A | X18: 10 | Y18: 03 | Z18: 78 | AA18: 78 | AB18: 00 | AC18: 07 | AD18: 02 | AE18: 0F | AF18: 01 | AG18: 01 | AH18: 08 | AI18: 03 | AJ18: 06 | AK18: 0D
B19: 010 | C19: 01 | D19: 0A | E19: 03 | F19: 08 | G19: 08 | H19: 0D | I19: 0F | J19: 02 | K19: 0D | L19: 7C | M19: 7C | N19: 10 | O19: 04 | P19: 33 | Q19: CB | R19: 08 | U19: 010 | V19: 01 | W19: 0A | X19: 03 | Y19: 08 | Z19: 08 | AA19: 0D | AB19: 0F | AC19: 02 | AD19: 0D | AE19: 7C | AF19: 7C | AG19: 10 | AH19: 04 | AI19: 33 | AJ19: 77 | AK19: FE
B20: 020 | C20: 08 | D20: 08 | E20: 00 | F20: 03 | G20: 08 | H20: 0C | I20: 15 | J20: 28 | K20: 39 | L20: 59 | M20: 1E | N20: 32 | O20: 45 | P20: 58 | Q20: 6A | R20: 7D | U20: 020 | V20: 08 | W20: 08 | X20: 00 | Y20: 03 | Z20: 08 | AA20: 0C | AB20: 15 | AC20: 28 | AD20: 39 | AE20: 59 | AF20: 1E | AG20: 32 | AH20: 45 | AI20: 58 | AJ20: 1B | AK20: FE
B21: 030 | C21: 90 | D21: A3 | E21: 00 | F21: 00 | G21: 00 | H21: 00 | I21: 00 | J21: 00 | K21: 00 | L21: 00 | M21: 04 | N21: 02 | O21: 01 | P21: 00 | Q21: 00 | R21: 00 | U21: 030 | V21: 90 | W21: A3 | X21: 00 | Y21: 00 | Z21: 00 | AA21: 00 | AB21: 00 | AC21: 00 | AD21: 00 | AE21: 00 | AF21: 04 | AG21: 02 | AH21: 01 | AI21: 00 | AJ21: C3 | AK21: FE
B22: 040 | C22: 00 | D22: 00 | E22: 04 | F22: 02 | G22: 01 | H22: 00 | I22: 00 | J22: 00 | K22: 00 | L22: 00 | M22: 08 | N22: 05 | O22: 04 | P22: 02 | Q22: 00 | R22: 00 | U22: 040 | V22: 00 | W22: 00 | X22: 00 | Y22: 00 | Z22: 01 | AA22: 00 | AB22: 00 | AC22: 00 | AD22: 00 | AE22: 00 | AF22: 08 | AG22: 05 | AH22: 04 | AI22: 02 | AJ22: E8 | AK22: FF
B23: 050 | C23: 00 | D23: 00 | E23: 11 | F23: 0D | G23: 09 | H23: 07 | I23: 04 | J23: 04 | K23: 04 | L23: 04 | M23: 1B | N23: 1A | O23: 17 | P23: 13 | Q23: 11 | R23: 11 | U23: 050 | V23: 00 | W23: 00 | X23: 11 | Y23: 0D | Z23: 09 | AA23: 07 | AB23: 04 | AC23: 04 | AD23: 04 | AE23: 04 | AF23: 1B | AG23: 1A | AH23: 17 | AI23: 13 | AJ23: 5E | AK23: FF
B24: 060 | C24: 10 | D24: 10 | E24: 1E | F24: 1F | G24: 1D | H24: 1B | I24: 1A | J24: 1B | K24: 1B | L24: 1A | M24: 1E | N24: 20 | O24: 1F | P24: 1F | Q24: 1F | R24: 22 | U24: 060 | V24: 10 | W24: 10 | X24: 1E | Y24: 1F | Z24: 1D | AA24: 1B | AB24: 1A | AC24: 1B | AD24: 1B | AE24: 1A | AF24: 1E | AG24: 20 | AH24: 1F | AI24: 1F | AJ24: 7F | AK24: FE
B25: 070 | C25: 24 | D25: 25 | E25: 1E | F25: 08 | G25: 7F | H25: 02 | I25: 0D | J25: 04 | K25: 44 | L25: 26 | M25: 26 | N25: 0B | O25: 0A | P25: 9A | Q25: 0F | R25: 01 | U25: 070 | V25: 24 | W25: 25 | X25: 1E | Y25: 08 | Z25: 7F | AA25: 02 | AB25: 0D | AC25: 04 | AD25: 44 | AE25: 26 | AF25: 26 | AG25: 0B | AH25: 0A | AI25: 9A | AJ25: B9 | AK25: FD
B26: 080 | C26: 01 | D26: 04 | E26: 0C | F26: 01 | G26: 67 | H26: 0D | I26: FA | J26: 01 | K26: 05 | L26: 0F | M26: 19 | N26: 19 | O26: 19 | P26: FA | Q26: 08 | R26: 19 | U26: 080 | V26: 01 | W26: 04 | X26: 0C | Y26: 01 | Z26: 67 | AA26: 0D | AB26: FA | AC26: 01 | AD26: 05 | AE26: 0F | AF26: 19 | AG26: 19 | AH26: 19 | AI26: FA | AJ26: 1F | AK26: FD
B27: 090 | C27: 1F | D27: 25 | E27: 3F | F27: 58 | G27: 7D | H27: 96 | I27: AF | J27: 08 | K27: 0D | L27: 1B | M27: 28 | N27: 35 | O27: 43 | P27: 50 | Q27: 78 | R27: 85 | U27: 090 | V27: 1F | W27: 25 | X27: 3F | Y27: 58 | Z27: 7D | AA27: 96 | AB27: AF | AC27: 08 | AD27: 0D | AE27: 1B | AF27: 28 | AG27: 35 | AH27: 43 | AI27: 50 | AJ27: 3A | AK27: FC
B28: 0A0 | C28: 08 | D28: 0B | E28: 13 | F28: 1D | G28: 2A | H28: 31 | I28: 40 | J28: 48 | K28: 57 | L28: 0F | M28: 10 | N28: 11 | O28: 12 | P28: 12 | Q28: 11 | R28: 16 | U28: 0A0 | V28: 08 | W28: 0B | X28: 13 | Y28: 1D | Z28: 2A | AA28: 31 | AB28: 40 | AC28: 48 | AD28: 57 | AE28: 0F | AF28: 10 | AG28: 11 | AH28: 12 | AI28: 12 | AJ28: 26 | AK28: FE
B29: 0B0 | C29: 14 | D29: 23 | E29: 24 | F29: 25 | G29: 26 | H29: 26 | I29: 28 | J29: 2B | K29: 2B | L29: 36 | M29: 37 | N29: 38 | O29: 39 | P29: 39 | Q29: 3C | R29: 3E | U29: 0B0 | V29: 14 | W29: 23 | X29: 24 | Y29: 25 | Z29: 26 | AA29: 26 | AB29: 28 | AC29: 2B | AD29: 2B | AE29: 36 | AF29: 37 | AG29: 38 | AH29: 39 | AI29: 39 | AJ29: 94 | AK29: FD
B30: 0C0 | C30: 41 | D30: 48 | E30: 4A | F30: 4B | G30: 4C | H30: 4D | I30: 50 | J30: 51 | K30: 56 | L30: 5D | M30: 5F | N30: 5F | O30: 60 | P30: 62 | Q30: 66 | R30: 65 | U30: 0C0 | V30: 41 | W30: 48 | X30: 4A | Y30: 4B | Z30: 4C | AA30: 4D | AB30: 50 | AC30: 51 | AD30: 56 | AE30: 5D | AF30: 5F | AG30: 5F | AH30: 60 | AI30: 62 | AJ30: 6A | AK30: FB
B31: 0D0 | C31: 6E | D31: 6F | E31: 72 | F31: 72 | G31: 73 | H31: 75 | I31: 7A | J31: 78 | K31: 83 | L31: A9 | M31: AD | N31: AC | O31: AD | P31: B0 | Q31: B8 | R31: B1 | U31: 0D0 | V31: 6E | W31: 6F | X31: 72 | Y31: 72 | Z31: 73 | AA31: 75 | AB31: 7A | AC31: 78 | AD31: 83 | AE31: A9 | AF31: AD | AG31: AC | AH31: AD | AI31: B0 | AJ31: 76 | AK31: F8
B32: 0E0 | C32: C6 | D32: BB | E32: C0 | F32: BF | G32: C0 | H32: C4 | I32: CC | J32: C4 | K32: DC | L32: 34 | M32: 38 | N32: 3C | O32: 42 | P32: 48 | Q32: 4C | R32: 4B | U32: 0E0 | V32: C6 | W32: BB | X32: C0 | Y32: BF | Z32: C0 | AA32: C4 | AB32: CC | AC32: C4 | AD32: DC | AE32: 34 | AF32: 38 | AG32: 3C | AH32: 42 | AI32: 48 | AJ32: D1 | AK32: F7
B33: 0F0 | C33: 49 | D33: 28 | E33: 29 | F33: 2A | G33: 34 | H33: 35 | I33: 39 | J33: 3F | K33: 39 | L33: 1C | M33: 1F | N33: 22 | O33: 2B | P33: 2E | Q33: 30 | R33: 36 | U33: 0F0 | V33: 49 | W33: 28 | X33: 29 | Y33: 2A | Z33: 34 | AA33: 35 | AB33: 39 | AC33: 3F | AD33: 39 | AE33: 1C | AF33: 1F | AG33: 22 | AH33: 2B | AI33: 2E | AJ33: 5D | AK33: FD
B34: 100 | C34: 36 | D34: 1C | E34: 1E | F34: 1F | G34: 27 | H34: 2A | I34: 2E | J34: 32 | K34: 33 | L34: 17 | M34: 1B | N34: 1D | O34: 25 | P34: 27 | Q34: 2C | R34: 30 | U34: 100 | V34: 36 | W34: 1C | X34: 1E | Y34: 1F | Z34: 27 | AA34: 2A | AB34: 2E | AC34: 32 | AD34: 33 | AE34: 17 | AF34: 1B | AG34: 1D | AH34: 25 | AI34: 27 | AJ34: E3 | AK34: FD
B35: 110 | C35: 2F | D35: 15 | E35: 19 | F35: 1B | G35: 23 | H35: 26 | I35: 2D | J35: 2B | K35: 2F | L35: 09 | M35: 0B | N35: 0F | O35: 1A | P35: 1D | Q35: 23 | R35: 29 | U35: 110 | V35: 2F | W35: 15 | X35: 19 | Y35: 1B | Z35: 23 | AA35: 26 | AB35: 2D | AC35: 2B | AD35: 2F | AE35: 09 | AF35: 0B | AG35: 0F | AH35: 1A | AI35: 1D | AJ35: 11 | AK35: 11
B36: 120 | C36: 2E | D36: 09 | E36: 0C | F36: 11 | G36: 19 | H36: 1C | I36: 21 | J36: 26 | K36: 2B | L36: 08 | M36: 18 | N36: 33 | O36: 40 | P36: 4D | Q36: 54 | R36: 75 | U36: 120 | V36: 2E | W36: 09 | X36: 0C | Y36: 11 | Z36: 19 | AA36: 1C | AB36: 21 | AC36: 26 | AD36: 2B | AE36: 08 | AF36: 18 | AG36: 33 | AH36: 40 | AI36: 4D | AJ36: 13 | AK36: FE
B37: 130 | C37: 90 | D37: A4 | E37: 0B | F37: 0B | G37: 09 | H37: 07 | I37: 06 | J37: 04 | K37: 02 | L37: 00 | M37: 08 | N37: 05 | O37: 0D | P37: 14 | Q37: 1B | R37: 2F | U37: 130 | V37: 90 | W37: A4 | X37: 0B | Y37: 0B | Z37: 09 | AA37: 07 | AB37: 06 | AC37: 04 | AD37: 02 | AE37: 00 | AF37: 08 | AG37: 05 | AH37: 0D | AI37: 14 | AJ37: 59 | AK37: FE
B38: 140 | C38: 35 | D38: 40 | E38: 50 | F38: C8 | G38: C2 | H38: B5 | I38: A1 | J38: 56 | K38: 43 | L38: 2B | M38: 15 | N38: 00 | O38: 00 | P38: 00 | Q38: 00 | R38: 00 | U38: 140 | V38: 35 | W38: 40 | X38: 50 | Y38: C8 | Z38: C2 | AA38: B5 | AB38: A1 | AC38: 56 | AD38: 43 | AE38: 2B | AF38: 15 | AG38: 00 | AH38: 00 | AI38: 00 | AJ38: 6E | AK38: FB
B39: 150 | C39: 00 | D39: 00 | E39: 00 | F39: 08 | G39: 16 | H39: 1D | I39: 20 | J39: 23 | K39: 2A | L39: 2D | M39: 30 | N39: 3A | O39: 00 | P39: 00 | Q39: 00 | R39: 00 | U39: 150 | V39: 00 | W39: 00 | X39: 00 | Y39: 08 | Z39: 16 | AA39: 1D | AB39: 20 | AC39: 23 | AD39: 2A | AE39: 2D | AF39: 30 | AG39: 3A | AH39: 00 | AI39: 00 | AJ39: AC | AK39: FE
B40: 160 | C40: 00 | D40: 00 | E40: 00 | F40: 00 | G40: 08 | H40: 16 | I40: 1D | J40: 20 | K40: 23 | L40: 2A | M40: 2D | N40: 30 | O40: 3A | P40: 00 | Q40: 00 | R40: 00 | U40: 160 | V40: 00 | W40: 00 | X40: 00 | Y40: 00 | Z40: 08 | AA40: 16 | AB40: 1D | AC40: 20 | AD40: 23 | AE40: 2A | AF40: 2D | AG40: 30 | AH40: 3A | AI40: 00 | AJ40: AB | AK40: FE
B41: 170 | C41: 00 | D41: 00 | E41: 00 | F41: 00 | G41: 00 | H41: A4 | I41: 00 | J41: 00 | K41: 00 | L41: 00 | M41: 00 | N41: 00 | O41: 00 | P41: 00 | Q41: 00 | R41: 00 | U41: 170 | V41: 00 | W41: 00 | X41: 00 | Y41: 00 | Z41: 00 | AA41: A4 | AB41: 00 | AC41: 00 | AD41: 00 | AE41: 00 | AF41: 00 | AG41: 00 | AH41: 00 | AI41: 00 | AJ41: 45 | AK41: FF
B42: 180 | C42: 00 | D42: 00 | E42: 00 | F42: 00 | G42: 00 | H42: 00 | I42: 00 | J42: 00 | K42: 00 | L42: 00 | M42: 00 | N42: 00 | O42: 00 | P42: 00 | Q42: 00 | R42: 00 | U42: 180 | V42: 00 | W42: 00 | X42: 00 | Y42: 00 | Z42: 00 | AA42: 00 | AB42: 00 | AC42: 00 | AD42: 00 | AE42: 00 | AF42: 00 | AG42: 00 | AH42: 00 | AI42: 00 | AJ42: E8 | AK42: FF
B43: 190 | C43: 00 | D43: 00 | E43: 00 | F43: 00 | G43: 00 | H43: 00 | I43: 00 | J43: 00 | K43: 00 | L43: 00 | M43: 00 | N43: 00 | O43: 00 | P43: 00 | Q43: 00 | R43: 00 | U43: 190 | V43: 00 | W43: 00 | X43: 00 | Y43: 00 | Z43: 00 | AA43: 00 | AB43: 00 | AC43: 00 | AD43: 00 | AE43: 00 | AF43: 00 | AG43: 00 | AH43: 00 | AI43: 00 | AJ43: E7 | AK43: FF
B44: 1A0 | C44: 00 | D44: 00 | E44: 00 | F44: 00 | G44: 00 | H44: 00 | I44: 00 | J44: 00 | K44: 00 | L44: 00 | M44: 00 | N44: 00 | O44: 00 | P44: 00 | Q44: 00 | R44: 00 | U44: 1A0 | V44: 00 | W44: 00 | X44: 00 | Y44: 00 | Z44: 00 | AA44: 00 | AB44: 00 | AC44: 00 | AD44: 00 | AE44: 00 | AF44: 00 | AG44: 00 | AH44: 00 | AI44: 00 | AJ44: E6 | AK44: FF
B45: 1B0 | C45: 00 | D45: 00 | E45: 00 | F45: 00 | G45: 00 | H45: 00 | I45: 0C | J45: 00 | K45: 00 | L45: 00 | M45: 00 | N45: 00 | O45: 00 | P45: 00 | Q45: 0C | R45: 00 | U45: 1B0 | V45: 00 | W45: 00 | X45: 00 | Y45: 00 | Z45: 00 | AA45: 00 | AB45: 0C | AC45: 00 | AD45: 00 | AE45: 00 | AF45: 00 | AG45: 00 | AH45: 00 | AI45: 00 | AJ45: D9 | AK45: FF
B46: 1C0 | C46: 00 | D46: 00 | E46: 00 | F46: 00 | G46: 00 | H46: 00 | I46: 0C | J46: 00 | K46: 00 | L46: 00 | M46: 00 | N46: 00 | O46: 00 | P46: 00 | Q46: 0C | R46: 00 | U46: 1C0 | V46: 00 | W46: 00 | X46: 00 | Y46: 00 | Z46: 00 | AA46: 00 | AB46: 0C | AC46: 00 | AD46: 00 | AE46: 00 | AF46: 00 | AG46: 00 | AH46: 00 | AI46: 00 | AJ46: D8 | AK46: FF
B47: 1D0 | C47: 00 | D47: 00 | E47: 00 | F47: 00 | G47: 00 | H47: 00 | I47: 0C | J47: 00 | K47: 00 | L47: 00 | M47: 00 | N47: 00 | O47: 00 | P47: 00 | Q47: 0C | R47: 08 | U47: 1D0 | V47: 00 | W47: 00 | X47: 00 | Y47: 00 | Z47: 00 | AA47: 00 | AB47: 0C | AC47: 00 | AD47: 00 | AE47: 00 | AF47: 00 | AG47: 00 | AH47: 00 | AI47: 00 | AJ47: D7 | AK47: FF
B48: 1E0 | C48: 00 | D48: 00 | E48: 00 | F48: 00 | G48: 00 | H48: 00 | I48: 0C | J48: 08 | K48: 00 | L48: 00 | M48: 00 | N48: 00 | O48: 00 | P48: 00 | Q48: 0C | R48: 08 | U48: 1E0 | V48: 00 | W48: 00 | X48: 00 | Y48: 00 | Z48: 00 | AA48: 00 | AB48: 0C | AC48: 08 | AD48: 00 | AE48: 00 | AF48: 00 | AG48: 00 | AH48: 00 | AI48: 00 | AJ48: CE | AK48: FF
B49: 1F0 | C49: 07 | D49: 00 | E49: 00 | F49: 00 | G49: 00 | H49: 00 | I49: 0C | J49: 00 | K49: 00 | L49: 00 | M49: 00 | N49: 00 | O49: 00 | P49: 00 | Q49: 0C | R49: 00 | U49: 1F0 | V49: 07 | W49: 00 | X49: 00 | Y49: 00 | Z49: 00 | AA49: 00 | AB49: 0C | AC49: 00 | AD49: 00 | AE49: 00 | AF49: 00 | AG49: 00 | AH49: 00 | AI49: 00 | AJ49: CF | AK49: FF

Sheet CODEWORDS CONVERTER
C3: CODEWORDS CONVERTER by MASTERJ v1.0
C11: marius.guscius@vwklubas.lt
D14: <=== | E14: EDITABLE FIELDS!
C18: ENTER CODEWORD VALUE IN DECIMAL NUMBER: | H18: 0
H19: 6
C21: BIT 0 | D21: BIT 1 | E21: BIT 2 | F21: BIT 3 | G21: BIT 4 | H21: BIT 5 | I21: BIT 6 | J21: BIT 7 | K21: BIT 8 | L21: BIT 9 | M21: BIT 10 | N21: BIT 11 | O21: BIT 12 | P21: BIT 13 | Q21: BIT 14 | R21: BIT 15

Sheet INJECTORS DATABASE
C3: INJECTORS DATABASE by MASTERJ v1.0a
C11: marius.guscius@vwklubas.lt
D14: <=== | E14: EDITABLE FIELDS!
C18: PART NUMBER # | D18: G/MIN @ 3BAR 100% DC | E18: CC @ 3BAR 100% DC | F18: IMPEDANCE Ω | G18: INJECTOR TYPE (EVxx)
C19: 0280150007 | D19: 254.0918535 | E19: =D19/0.684 -> 371.4793179 | F19: 2.4 | G19: 1.1
C20: 0280150008 | D20: 254.0918535 | E20: =D20/0.684 -> 371.4793179 | F20: 2.4 | G20: 1.1
C21: 0280150009 | D21: 254.0918535 | E21: 371.4793179 | F21: 2.4 | G21: 1.1
C22: 0280150010 | F22: 2.4 | G22: 1.1
C23: 0280150016 | D23: 304.9028011 | E23: 445.7643291 | F23: 2.4 | G23: 1.1
C24: 0280150019 | D24: 304.9028011 | E24: 445.7643291 | F24: 2.4 | G24: 1.1
C25: 0280150030 | D25: 254.0918535 | E25: 371.4793179 | F25: 2.4 | G25: 1.1
C26: 0280150034 | D26: 254.0918535 | E26: 371.4793179 | F26: 2.4 | G26: 1.1
C27: 0280150035 | D27: 304.9028011 | E27: 445.7643291 | F27: 2.4 | G27: 1.1
C28: 0280150036 | D28: 364.3492592 | E28: 532.6743555 | F28: 2.4 | G28: 1.1
C29: 0280150038 | D29: 304.9028011 | E29: 445.7643291 | F29: 2.4 | G29: 1.1
C30: 0280150039 | F30: 2.4 | G30: 1.1
C31: 0280150040 | D31: 304.9028011 | E31: 445.7643291 | F31: 2.4 | G31: 1.1
C32: 0280150041 | D32: 364.3492592 | E32: 532.6743555 | F32: 2.4 | G32: 1.1
C33: 0280150042 | D33: 304.9028011 | E33: 445.7643291 | F33: 2.4 | G33: 1.1
C34: 0280150043 | D34: 364.3492592 | E34: 532.6743555 | F34: 2.4 | G34: 1.1
C35: 0280150044 | D35: 254.0918535 | E35: 371.4793179 | F35: 2.4 | G35: 1.1
C36: 0280150045 | D36: 304.9028011 | E36: 445.7643291 | F36: 2.4 | G36: 1.1
C37: 0280150051 | D37: 505.2392206 | E37: 738.6538312 | F37: 6.7 | G37: 10
C38: 0280150052 | D38: 440.4605204 | E38: 643.9481292 | F38: 6.7 | G38: 10
C39: 0280150053 | D39: 699.7485263 | E39: 1023.024161 | F39: 1.3 | G39: 10
C40: 0280150054 | G40: 10
C41: 0280150055 | D41: 834.8484892 | E41: 1220.538727 | F41: 1.3 | G41: 10
C42: 0280150056 | G42: 10
C43: 0280150057 | D43: 642.5908496 | E43: 939.4603064 | F43: 1.3 | G43: 10
C44: 0280150058 | G44: 10
C45: 0280150059 | D45: 867.7574546 | E45: 1268.651249 | F45: 1.3 | G45: 10
C46: 0280150060 | D46: 536.9357503 | E46: 784.9937871 | F46: 6.7 | G46: 10
C47: 0280150063 | D47: 911.0587248 | E47: 1331.9572 | F47: 1.3 | G47: 10
C48: 0280150064 | G48: 10
C49: 0280150065 | D49: 610.7211147 | E49: 892.8671268 | F49: 1.3 | G49: 10
C50: 0280150067 | D50: 792.9328597 | E50: 1159.258567 | F50: 1.03 | G50: 10
C51: 0280150068 | G51: 10
C52: 0280150069 | D52: 610.7211147 | E52: 892.8671268 | F52: 1.3 | G52: 10
C53: 0280150070 | D53: 351.6063139 | E53: 514.0443186 | F53: 10 | G53: 10
C54: 0280150071 | D54: 718.8010851 | E54: 1050.878779 | F54: 1.3 | G54: 10
C55: 0280150100 | F55: 2.4 | G55: 1.1
C56: 0280150101 | F56: 2.4 | G56: 1.1
C57: 0280150102 | F57: 2.4 | G57: 1.1
C58: 0280150103 | F58: 2.4 | G58: 1.1
C59: 0280150105 | D59: 143.37 | E59: 209.6052632 | F59: 2.4 | G59: 1.1
C60: 0280150106 | F60: 2.4 | G60: 1.1
C61: 0280150107 | F61: 2.4 | G61: 1.1
C62: 0280150108 | F62: 2.4 | G62: 1.1
C63: 0280150109 | F63: 2.4 | G63: 1.1
C64: 0280150110
C65: 0280150111
C66: 0280150112 | D66: 143.37 | E66: 209.6052632 | F66: 2.4 | G66: 1.1
C67: 0280150114 | D67: 143.37 | E67: 209.6052632 | F67: 2.4 | G67: 1.1
C68: 0280150115
C69: 0280150116 | D69: 143.37 | E69: 209.6052632 | F69: 2.4 | G69: 1.1
C70: 0280150117 | D70: 143.37 | E70: 209.6052632 | F70: 2.4 | G70: 1.1
C71: 0280150118 | D71: 143.37 | E71: 209.6052632 | F71: 2.4 | G71: 1.1
C72: 0280150119 | D72: 143.37 | E72: 209.6052632 | F72: 2.4 | G72: 1.1
C73: 0280150121 | D73: 143.37 | E73: 209.6052632 | F73: 2.4 | G73: 1.1
C74: 0280150123 | D74: 147.2278235 | E74: 215.2453559 | F74: 2.25 | G74: 1.1
C75: 0280150124 | D75: 143.37 | E75: 209.6052632 | F75: 2.4 | G75: 1.1
C76: 0280150125 | D76: 147.2278235 | E76: 215.2453559 | F76: 2.25 | G76: 1.1
C77: 0280150126 | D77: 147.2278235 | E77: 215.2453559 | F77: 2.25 | G77: 1.1
C78: 0280150128 | D78: 147.2278235 | E78: 215.2453559 | F78: 2.25 | G78: 1.1
C79: 0280150129 | D79: 147.4 | E79: 215.497076 | F79: 2.25 | G79: 1.1
C80: 0280150130 | D80: 143.38 | E80: 209.619883 | F80: 2.25 | G80: 1.1
C81: 0280150133 | D81: 147.4 | E81: 215.497076 | F81: 2.4 | G81: 1.1
C82: 0280150134 | D82: 147.2278235 | E82: 215.2453559 | F82: 2.25 | G82: 1.1
C83: 0280150135 | D83: 147.4 | E83: 215.497076 | F83: 2.4 | G83: 1.1
C84: 0280150136 | F84: 2.25 | G84: 1.1
C85: 0280150151 | D85: 185.7 | E85: =D85/0.684 -> 271.4912281 | F85: 2.4 | G85: 1.1
C86: 0280150152 | D86: 185.7 | E86: 271.4912281 | F86: 2.4 | G86: 1.1
C87: 0280150153 | D87: 185.7 | E87: 271.4912281 | F87: 2.4 | G87: 1.1
C88: 0280150154 | D88: 185.7 | E88: 271.4912281 | F88: 2.4 | G88: 1.1
C89: 0280150157 | D89: 181.6795723 | E89: 265.6134098 | F89: 2.4 | G89: 1.1
C90: 0280150158 | D90: 179.6529989 | E90: 262.6505831 | F90: 2.35 | G90: 1.1
C91: 0280150159 | D91: 189.7366596 | E91: 277.3927772 | F91: 2.4 | G91: 1.1
C92: 0280150160 | D92: 150.7352351 | E92: 220.3731508 | F92: 2.25 | G92: 1.1
C93: 0280150161 | D93: 147.4 | E93: 215.497076 | F93: 2.4 | G93: 1.1
C94: 0280150162 | D94: 147.4 | E94: 215.497076 | F94: 2.4 | G94: 1.1
C95: 0280150163 | D95: 147.4 | E95: 215.497076 | F95: 2.4 | G95: 1.1
C96: 0280150164 | D96: 147.4 | E96: 215.497076 | F96: 2.4 | G96: 1.1
C97: 0280150165 | D97: 181.6795723 | E97: 265.6134098 | F97: 2.4 | G97: 1.1
C98: 0280150166 | D98: 185.7 | E98: 271.4912281 | F98: 2.4 | G98: 1.1
C99: 0280150200 | D99: 236.0684223 | E99: 345.1292723 | F99: 2.4 | G99: 1.1
C100: 0280150201 | D100: 185.7 | E100: 271.4912281 | F100: 2.4 | G100: 1.1
C101: 0280150203 | D101: 150 | E101: 219.2982456 | F101: 16.15 | G101: 1.1
C102: 0280150204 | D102: 150.1855253 | E102: 219.5694814 | F102: 16.15 | G102: 1.1
C103: 0280150205 | D103: 150.1855253 | E103: 219.5694814 | F103: 16.15 | G103: 1.1
C104: 0280150206 | D104: 150.2402975 | E104: 219.6495578 | F104: 16.15 | G104: 1.1
C105: 0280150207 | D105: 150.2402975 | E105: 219.6495578 | F105: 16.15 | G105: 1.1
C106: 0280150208 | D106: 116.3362712 | E106: 170.0822679 | F106: 16.15 | G106: 1.1
C107: 0280150209 | D107: 150.1855253 | E107: 219.5694814 | F107: 16.15 | G107: 1.1
C108: 0280150210 | D108: 116.3362712 | E108: 170.0822679 | F108: 16.15 | G108: 1.1
C109: 0280150211 | D109: 116.5 | E109: 170.3216374 | F109: 16.15 | G109: 1.1
C110: 0280150213 | D110: 232.5 | E110: 339.9122807 | F110: 2.4 | G110: 1.1
C111: 0280150214 | D111: 150 | E111: 219.2982456 | F111: 16.15 | G111: 1.1
C112: 0280150215 | D112: 187.3211147 | E112: 273.8612788 | F112: 16.15 | G112: 1.1
C113: 0280150216 | F113: 16.15 | G113: 1.1
C114: 0280150217 | D114: 150.1855253 | E114: 219.5694814 | F114: 16.15 | G114: 1.1
C115: 0280150218 | D115: 228.6193955 | E115: 334.2388823 | F115: 15.55 | G115: 1.1
C116: 0280150219 | D116: 150.1855253 | E116: 219.5694814 | F116: 16.15 | G116: 1.1
C117: 0280150220 | D117: 116.5 | E117: 170.3216374 | F117: 16.15 | G117: 1.1
C118: 0280150221 | D118: 116.5 | E118: 170.3216374 | F118: 16.15 | G118: 1.1
C119: 0280150222 | D119: 150 | E119: 219.2982456 | F119: 16.15 | G119: 1.1
C120: 0280150223 | D120: 187.3211147 | E120: 273.8612788 | F120: 16.15 | G120: 1.1
C121: 0280150224 | F121: 16.15 | G121: 1.1
C122: 0280150225 | F122: 16.15 | G122: 1.1
C123: 0280150226 | D123: 150.1855253 | E123: 219.5694814 | F123: 16.15 | G123: 1.1
C124: 0280150227 | D124: 150.1855253 | E124: 219.5694814 | F124: 16.15 | G124: 1.1
C125: 0280150228 | F125: 16.15 | G125: 1.1
C126: 0280150229 | D126: 107.5174404 | E126: 157.1892404 | F126: 15.55 | G126: 1.1
C127: 0280150230 | D127: 144.3248939 | E127: 211.0013069 | F127: 16.15 | G127: 1.1
C128: 0280150231 | D128: 116.5 | E128: 170.3216374 | F128: 16.15 | G128: 1.1
C129: 0280150232 | D129: 171 | E129: 250 | F129: 16.15 | G129: 1.1
C130: 0280150233 | D130: 116.5 | E130: 170.3216374 | F130: 16.15 | G130: 1.1
C131: 0280150234 | D131: 150 | E131: 219.2982456 | F131: 16.15 | G131: 1.1
C132: 0280150235 | D132: 150.1855253 | E132: 219.5694814 | F132: 16.15 | G132: 1.1
C133: 0280150237 | D133: 116.5 | E133: 170.3216374 | F133: 16.15 | G133: 1.1
C134: 0280150238 | D134: 150 | E134: 219.2982456 | F134: 16.15 | G134: 1.1
C135: 0280150239 | D135: 171 | E135: 250 | F135: 16.15 | G135: 1.1
C136: 0280150252 | D136: 187.3211147 | E136: 273.8612788 | F136: 16.15 | G136: 1.1
C137: 0280150254 | D137: 187.3211147 | E137: 273.8612788 | F137: 16.15 | G137: 1.1
C138: 0280150255 | D138: 182.9 | E138: 267.3976608 | F138: 16.15 | G138: 1.1
C139: 0280150257 | D139: 150 | E139: 219.2982456 | F139: 16.15 | G139: 1.1
C140: 0280150300 | D140: 149.8403459 | E140: 219.0648332 | F140: 2.4 | G140: 1.1T
C141: 0280150302 | D141: 149.8403459 | E141: 219.0648332 | F141: 2.4 | G141: 1.1T
C142: 0280150303 | D142: 149.8403459 | E142: 219.0648332 | F142: 2.4 | G142: 1.1T
C143: 0280150306 | D143: 379.5502699 | E143: 554.8980554 | F143: 2.4 | G143: 1.1T
C144: 0280150309 | D144: 149.8403459 | E144: 219.0648332 | F144: 2.4 | G144: 1.1T
C145: 0280150310 | D145: 149.8403459 | E145: 219.0648332 | F145: 2.4 | G145: 1.1T
C146: 0280150314 | D146: 149.8403459 | E146: 219.0648332 | F146: 2.4 | G146: 1.1T
C147: 0280150315 | D147: 149.8403459 | E147: 219.0648332 | F147: 2.4 | G147: 1.1T
C148: 0280150317 | F148: 2.4 | G148: 1.1T
C149: 0280150318 | D149: 149.8403459 | E149: =D149/0.684 -> 219.0648332 | F149: 2.4 | G149: 1.1T
C150: 0280150319 | D150: 149.8403459 | E150: 219.0648332 | F150: 2.4 | G150: 1.1T
C151: 0280150320 | D151: 149.8403459 | E151: 219.0648332 | F151: 2.4 | G151: 1.1T
C152: 0280150321 | D152: 149.8403459 | E152: 219.0648332 | F152: 2.4 | G152: 1.1T
C153: 0280150322 | D153: 149.8403459 | E153: 219.0648332 | F153: 2.4 | G153: 1.1T
C154: 0280150323 | D154: 149.8403459 | E154: 219.0648332 | F154: 2.4 | G154: 1.1T
C155: 0280150324 | D155: 149.8403459 | E155: 219.0648332 | F155: 2.4 | G155: 1.1T
C156: 0280150325 | D156: 149.8403459 | E156: 219.0648332 | F156: 2.4 | G156: 1.1T
C157: 0280150326 | D157: 149.8403459 | E157: 219.0648332 | F157: 2.4 | G157: 1.1T
C158: 0280150327 | D158: 149.8403459 | E158: 219.0648332 | F158: 2.4 | G158: 1.1T
C159: 0280150334 | D159: 149.8403459 | E159: 219.0648332 | F159: 2.4 | G159: 1.1T
C160: 0280150335 | D160: 149.8403459 | E160: 219.0648332 | F160: 2.4 | G160: 1.1T
C161: 0280150351 | D161: 479.8049604 | E161: 701.4692403 | F161: 0.7 | G161: 1.1
C162: 0280150352 | D162: 186.5898965 | E162: 272.7922463 | F162: 2.4 | G162: 1.1
C163: 0280150353 | D163: 107.1110878 | E163: 156.5951576 | F163: 2.25 | G163: 1.1
C164: 0280150354 | D164: 107.1110878 | E164: 156.5951576 | F164: 2.25 | G164: 1.1
C165: 0280150355 | D165: 237 | E165: 346.4912281 | F165: 2.4 | G165: 1.1
C166: 0280150357 | D166: 238.65 | E166: 348.9035088 | F166: 2.4 | G166: 1.1
C167: 0280150360 | D167: 186.5898965 | E167: 272.7922463 | F167: 2.4 | G167: 1.1
C168: 0280150361 | D168: 203.2052825 | E168: 297.0837464 | F168: 2.4 | G168: 1.1
C169: 0280150362 | D169: 186.5898965 | E169: 272.7922463 | F169: 2.4 | G169: 1.1
C170: 0280150363 | D170: 479.8049604 | E170: 701.4692403 | F170: 0.7 | G170: 1.1
C171: 0280150364 | D171: 186.5898965 | E171: 272.7922463 | F171: 2.4 | G171: 1.1
C172: 0280150365 | D172: 186.5898965 | E172: 272.7922463 | F172: 2.4 | G172: 1.1
C173: 0280150366 | D173: 129.9021089 | E173: 189.9153639 | F173: 2.4 | G173: 1.1
C174: 0280150367 | D174: 129.9021089 | E174: 189.9153639 | F174: 2.4 | G174: 1.1
C175: 0280150368 | D175: 179.6594146 | E175: 262.6599629 | F175: 2.4 | G175: 1.1
C176: 0280150369 | D176: 179.6594146 | E176: 262.6599629 | F176: 2.4 | G176: 1.1
C177: 0280150370 | D177: 129.9021089 | E177: 189.9153639 | F177: 2.4 | G177: 1.1
C178: 0280150371 | D178: 129.9021089 | E178: 189.9153639 | F178: 2.4 | G178: 1.1
C179: 0280150400 | D179: 354.5956809 | E179: 518.4147381 | F179: 2.25 | G179: 1.2
C180: 0280150401 | D180: 354.5956809 | E180: 518.4147381 | F180: 2.25 | G180: 1.2
C181: 0280150402 | D181: 277.0850931 | E181: 405.0951654 | F181: 2.35 | G181: 1.2
C182: 0280150403 | D182: 402.8109284 | E182: 588.904866 | F182: 2.25 | G182: 1.2
C183: 0280150410 | F183: 12 | G183: 1.3
C184: 0280150411 | F184: 12 | G184: 1.3
C185: 0280150413 | D185: 153.8 | E185: 224.8538012 | F185: 15.9 | G185: 1.3
C186: 0280150414 | D186: 120 | E186: 175.4385965 | F186: 15.9 | G186: 1.3
C187: 0280150415 | D187: 120.356613 | E187: 175.9599605 | F187: 15.9 | G187: 1.3
C188: 0280150416 | D188: 117.5196473 | E188: 171.8123498 | F188: 15.9 | G188: 1.3
C189: 0280150417 | D189: 117.5196473 | E189: 171.8123498 | F189: 15.9 | G189: 1.3
C190: 0280150418 | D190: 205 | E190: 299.7076023 | F190: 15.9 | G190: 1.3
C191: 0280150419 | D191: 155.2250234 | E191: 226.9371687 | F191: 14.5 | G191: 1.3
C192: 0280150420 | D192: 237 | E192: 346.4912281 | F192: 14.5 | G192: 1.3
C193: 0280150421 | D193: 150 | E193: 219.2982456 | F193: 15.9 | G193: 1.3
C194: 0280150422 | D194: 260 | E194: 380.1169591 | F194: 15.9 | G194: 1.3
C195: 0280150423 | D195: 153.8 | E195: 224.8538012 | F195: 15.9 | G195: 1.3
C196: 0280150424 | D196: 135.099963 | E196: 197.5145658 | F196: 15.9 | G196: 1.3
C197: 0280150425 | D197: 135.099963 | E197: 197.5145658 | F197: 15.9 | G197: 1.3
C198: 0280150427 | D198: 188 | E198: 274.8538012 | F198: 15.9 | G198: 1.3
C199: 0280150428 | D199: 153.8 | E199: 224.8538012 | F199: 15.9 | G199: 1.3
C200: 0280150429 | D200: 153.8 | E200: 224.8538012 | F200: 15.9 | G200: 1.3
C201: 0280150431 | D201: 260 | E201: 380.1169591 | F201: 12 | G201: 1.3
C202: 0280150432 | D202: 187 | E202: 273.3918129 | F202: 14.5 | G202: 1.3
C203: 0280150433 | D203: 187 | E203: 273.3918129 | F203: 12 | G203: 1.3
C204: 0280150438 | D204: 133.2006852 | E204: 194.7378438 | F204: 13.8 | G204: 1.3
C205: 0280150439 | D205: 130.4 | E205: 190.6432749 | F205: 13.8 | G205: 1.3
C206: 0280150440 | D206: 149.9828562 | E206: 219.2731815 | F206: 14.5 | G206: 1.3
C207: 0280150441 | D207: 135.099963 | E207: 197.5145658 | F207: 15.9 | G207: 1.3
C208: 0280150442 | D208: 135.099963 | E208: 197.5145658 | F208: 15.9 | G208: 1.3
C209: 0280150443 | D209: 150 | E209: 219.2982456 | F209: 14.5 | G209: 1.3
C210: 0280150444 | D210: 117.5196473 | E210: 171.8123498 | F210: 12 | G210: 1.3
C211: 0280150445 | D211: 117.5196473 | E211: 171.8123498 | F211: 12 | G211: 1.3
C212: 0280150446 | D212: 137 | E212: =D212/0.684 -> 200.2923977 | F212: 14.5 | G212: 1.3
C213: 0280150447 | D213: 168.0089283 | E213: 245.6270882 | F213: 12 | G213: 1.3
C214: 0280150448 | D214: 168.0089283 | E214: 245.6270882 | F214: 12 | G214: 1.3
... 735 more rows

Sheet KRKTE CALCULATOR
C3: KRKTE CALCULATOR by MASTERJ v1.4
C11: marius.guscius@vwklubas.lt
D14: <=== | E14: EDITABLE FIELDS!
B18: Engine displacement: | E18: 1586 | F18: cm³ | G18: Cylinders: | H18: 4
C20: Fuel type: | D20: Gas | E20: Injector constant @ 3bar: | H20: 373 | I20: cc
B22: Fuel Pressure Regulator: | E22: 4.0 | F22: bar
B24: Original KVB: | D24: 298.59 | E24: Original KRKTE | G24: 0.10478
B26: KRKTE: | D26: =IF(D20="Gas",(50.2624*E18/H18*0.001)/(H20*SQRT(E22/3)*0.684),(67.7104*E18/H18*0.001)/(H20*SQRT(E22/3)*0.684)) -> 0.3314039899 | F26: KVB: | H26: =D24+(D24*(100-(D26 * 100 / G24))/100) -> -347.2169969

Sheet FKKVS FIXER
P2: ATTENTION!
G3: FKKVS FIXER by MASTERJ v1.2
O4: It is recommended to disable FUEL TRIMS before logging. To do this set bits 0 & 1 of NOLRA map to TRUE!
O8: LOAD CVS FILE:
O10: RPM IMPERFECTION: | R10: 120 | S10: RPM
G11: marius.guscius@vwklubas.lt
O12: INJECTOR IMPERFECTION: | R12: 0.2 | S12: MS
H14: <=== | I14: EDITABLE FIELDS!
B17: CURRENT FKKVS MAP
C18: MS RPM | D18: 600 | E18: 800 | F18: 1000 | G18: 1240 | H18: 1520 | I18: 1760 | J18: 2000 | K18: 2520 | L18: 3000 | M18: 3520 | N18: 4000 | O18: 4520 | P18: 5000 | Q18: 5520 | R18: 6000 | S18: 6520
C19: 1.2 | D19: 1 | E19: 1 | F19: 1 | G19: 1 | H19: 1 | I19: 1 | J19: 1 | K19: 1 | L19: 1 | M19: 1 | N19: 1 | O19: 1 | P19: 1 | Q19: 1 | R19: 1 | S19: 1
C20: 1.5 | D20: 1 | E20: 1 | F20: 1 | G20: 1 | H20: 1 | I20: 1 | J20: 1 | K20: 1 | L20: 1 | M20: 1 | N20: 1 | O20: 1 | P20: 1 | Q20: 1 | R20: 1 | S20: 1
C21: 2 | D21: 1 | E21: 1 | F21: 1 | G21: 1 | H21: 1 | I21: 1 | J21: 1 | K21: 1 | L21: 1 | M21: 1 | N21: 1 | O21: 1 | P21: 1 | Q21: 1 | R21: 1 | S21: 1
C22: 2.5 | D22: 1 | E22: 1 | F22: 1 | G22: 1 | H22: 1 | I22: 1 | J22: 1 | K22: 1 | L22: 1 | M22: 1 | N22: 1 | O22: 1 | P22: 1 | Q22: 1 | R22: 1 | S22: 1
C23: 3 | D23: 1 | E23: 1 | F23: 1 | G23: 1 | H23: 1 | I23: 1 | J23: 1 | K23: 1 | L23: 1 | M23: 1 | N23: 1 | O23: 1 | P23: 1 | Q23: 1 | R23: 1 | S23: 1
C24: 4 | D24: 1 | E24: 1 | F24: 1 | G24: 1 | H24: 1 | I24: 1 | J24: 1 | K24: 1 | L24: 1 | M24: 1 | N24: 1 | O24: 1 | P24: 1 | Q24: 1 | R24: 1 | S24: 1
C25: 5 | D25: 1 | E25: 1 | F25: 1 | G25: 1 | H25: 1 | I25: 1 | J25: 1 | K25: 1 | L25: 1 | M25: 1 | N25: 1 | O25: 1 | P25: 1 | Q25: 1 | R25: 1 | S25: 1
C26: 6 | D26: 1 | E26: 1 | F26: 1 | G26: 1 | H26: 1 | I26: 1 | J26: 1 | K26: 1 | L26: 1 | M26: 1 | N26: 1 | O26: 1 | P26: 1 | Q26: 1 | R26: 1 | S26: 1
C27: 7 | D27: 1 | E27: 1 | F27: 1 | G27: 1 | H27: 1 | I27: 1 | J27: 1 | K27: 1 | L27: 1 | M27: 1 | N27: 1 | O27: 1 | P27: 1 | Q27: 1 | R27: 1 | S27: 1
C28: 8 | D28: 1 | E28: 1 | F28: 1 | G28: 1 | H28: 1 | I28: 1 | J28: 1 | K28: 1 | L28: 1 | M28: 1 | N28: 1 | O28: 1 | P28: 1 | Q28: 1 | R28: 1 | S28: 1
C29: 9 | D29: 1 | E29: 1 | F29: 1 | G29: 1 | H29: 1 | I29: 1 | J29: 1 | K29: 1 | L29: 1 | M29: 1 | N29: 1 | O29: 1 | P29: 1 | Q29: 1 | R29: 1 | S29: 1
C30: 10 | D30: 1 | E30: 1 | F30: 1 | G30: 1 | H30: 1 | I30: 1 | J30: 1 | K30: 1 | L30: 1 | M30: 1 | N30: 1 | O30: 1 | P30: 1 | Q30: 1 | R30: 1 | S30: 1
C31: 12 | D31: 1 | E31: 1 | F31: 1 | G31: 1 | H31: 1 | I31: 1 | J31: 1 | K31: 1 | L31: 1 | M31: 1 | N31: 1 | O31: 1 | P31: 1 | Q31: 1 | R31: 1 | S31: 1
C32: 14 | D32: 1 | E32: 1 | F32: 1 | G32: 1 | H32: 1 | I32: 1 | J32: 1 | K32: 1 | L32: 1 | M32: 1 | N32: 1 | O32: 1 | P32: 1 | Q32: 1 | R32: 1 | S32: 1
C33: 17 | D33: 1 | E33: 1 | F33: 1 | G33: 1 | H33: 1 | I33: 1 | J33: 1 | K33: 1 | L33: 1 | M33: 1 | N33: 1 | O33: 1 | P33: 1 | Q33: 1 | R33: 1 | S33: 1
C34: 20 | D34: 1 | E34: 1 | F34: 1 | G34: 1 | H34: 1 | I34: 1 | J34: 1 | K34: 1 | L34: 1 | M34: 1 | N34: 1 | O34: 1 | P34: 1 | Q34: 1 | R34: 1 | S34: 1
B37: NEW FKKVS MAP
D38: =D18 -> 600 | E38: =E18 -> 800 | F38: 1000 | G38: 1240 | H38: 1520 | I38: 1760 | J38: 2000 | K38: 2520 | L38: 3000 | M38: 3520 | N38: 4000 | O38: 4520 | P38: 5000 | Q38: =Q18 -> 5520 | R38: 6000 | S38: 6520
C39: =C19 -> 1.2 | D39: 0.75 | E39: 0.8019374609 | F39: 0.8644374609 | G39: 0.9139530659 | H39: 0.9478437304 | I39: 0.9647890329 | J39: 0.973261714 | K39: 0.981734395 | L39: 0.9851793051 | M39: 0.9925896525 | N39: 1 | O39: 1 | P39: 1 | Q39: 1 | R39: 1 | S39: 1
C40: =C20 -> 1.5 | D40: 0.8125 | E40: 0.8442999721 | F40: 0.8892452717 | G40: 0.9263570309 | H40: 0.9540457129 | I40: 0.9678900242 | J40: 0.9748122096 | K40: 0.981734395 | L40: 0.9851793051 | M40: 0.9925896525 | N40: 1 | O40: 1 | P40: 1 | Q40: 1 | R40: 1 | S40: 1
C41: 2 | D41: 0.84375 | E41: 0.8654812574 | F41: 0.9034625292 | G41: 0.937092185 | H41: 0.95941329 | I41: 0.9705738425 | J41: 0.976154089 | K41: 0.981734395 | L41: 0.9851793051 | M41: 0.9925896525 | N41: 1 | O41: 1 | P41: 1 | Q41: 1 | R41: 1 | S41: 1
C42: 2.5 | D42: 0.859375 | E42: 0.8760718703 | F42: 0.9087578058 | G42: 0.9397398233 | H42: 0.9607371092 | I42: 0.9712357521 | J42: 0.9764850736 | K42: 0.981734395 | L42: 0.9851793051 | M42: 0.9925896525 | N42: 1 | O42: 1 | P42: 1.000105023 | Q42: 1.000105023 | R42: 1.000105023 | S42: 1.000105023
C43: 3 | D43: 0.8671875 | E43: 0.8827562332 | F43: 0.9120999575 | G43: 0.9414108992 | H43: 0.9615726471 | I43: 0.9716535211 | J43: 0.9766939878 | K43: 0.981734395 | L43: 0.9851793051 | M43: 0.9925896525 | N43: 1 | O43: 1 | P43: 1.000210047 | Q43: 1.000210047 | R43: 1.000210047 | S43: 1.000210047
C44: 4 | D44: 0.875 | E44: 0.8866624832 | F44: 0.9140530825 | G44: 0.9423874617 | H44: 0.9620609283 | I44: 0.9718976617 | J44: 0.981734395 | K44: 0.981734395 | L44: 0.9851793051 | M44: 0.9925896525 | N44: 1 | O44: 1 | P44: 1.000210047 | Q44: 1.000210047 | R44: 1.000210047 | S44: 1.000210047
C45: 5 | D45: 0.8828125 | E45: 0.8932924867 | F45: 0.917368114 | G45: 0.9440449476 | H45: 0.9628896713 | I45: 0.9723120332 | J45: 0.981734395 | K45: 0.981734395 | L45: 0.9851793051 | M45: 0.9925896525 | N45: 1 | O45: 1 | P45: 1.000210047 | Q45: 1.000210047 | R45: 1.000210047 | S45: 1.000210047
C46: 6 | D46: 0.9069703221 | E46: 0.9179885387 | F46: 0.9329154491 | G46: 0.951818645 | H46: 0.9667764902 | I46: 0.9742554426 | J46: 0.981734395 | K46: 0.981734395 | L46: 0.9851793051 | M46: 0.9925896525 | N46: 1 | O46: 1 | P46: 1.000210047 | Q46: 1.000210047 | R46: 1.000210047 | S46: 1.000210047
C47: 7 | D47: 0.9362671971 | E47: 0.944665432 | F47: 0.9530636072 | G47: 0.9624814391 | H47: 0.9721078873 | I47: 0.981734395 | J47: 0.981734395 | K47: 0.981734395 | L47: 0.9851793051 | M47: 0.9925896525 | N47: 1 | O47: 1 | P47: 1.000210047 | Q47: 1.000210047 | R47: 1.000210047 | S47: 1.000210047
C48: 8 | D48: 0.9509156346 | E48: 0.9580038786 | F48: 0.965092063 | G48: 0.9698009491 | H48: 0.9771205187 | I48: 0.981734395 | J48: 0.981734395 | K48: 0.981734395 | L48: 0.9851793051 | M48: 0.9925896525 | N48: 1 | O48: 1 | P48: 1.000210047 | Q48: 1.000210047 | R48: 1.000210047 | S48: 1.000210047
C49: 9 | D49: 0.9582398534 | E49: 0.9646730423 | F49: 0.9711062908 | G49: 0.9771205187 | H49: 0.9771205187 | I49: 0.981734395 | J49: 0.981734395 | K49: 0.981734395 | L49: 0.9851793051 | M49: 0.9925896525 | N49: 1 | O49: 1 | P49: 1.000210047 | Q49: 1.000210047 | R49: 1.000210047 | S49: 1.000210047
C50: 10 | D50: 0.9655640721 | E50: 0.9713423252 | F50: 0.9771205187 | G50: 0.9771205187 | H50: 0.9771205187 | I50: 0.981734395 | J50: 0.981734395 | K50: 0.981734395 | L50: 0.9851793051 | M50: 0.9925896525 | N50: 1 | O50: 1 | P50: 1.000210047 | Q50: 1.000210047 | R50: 1.000210047 | S50: 1.000210047
C51: 12 | D51: 0.9655640721 | E51: 0.9713423252 | F51: 0.9771205187 | G51: 0.9771205187 | H51: 0.9771205187 | I51: 0.981734395 | J51: 0.981734395 | K51: 0.981734395 | L51: 0.9851793051 | M51: 0.9925896525 | N51: 1 | O51: 1 | P51: 1.000210047 | Q51: 1.000210047 | R51: 1.000210047 | S51: 1.000210047
C52: 14 | D52: 0.9655640721 | E52: 0.9713423252 | F52: 0.9771205187 | G52: 0.9771205187 | H52: 0.9771205187 | I52: 0.981734395 | J52: 0.981734395 | K52: 0.981734395 | L52: 0.9851793051 | M52: 0.9925896525 | N52: 1 | O52: 1 | P52: 1.000210047 | Q52: 1.000210047 | R52: 1.000210047 | S52: 1.000210047
C53: 17 | D53: 0.9827820063 | E53: 0.9885602593 | F53: 0.9885602593 | G53: 0.9885602593 | H53: 0.9885602593 | I53: 0.9908671975 | J53: 0.9908671975 | K53: 0.9908671975 | L53: 0.9925896525 | M53: 0.9925896525 | N53: 1 | O53: 1 | P53: 1.000210047 | Q53: 1.000210047 | R53: 1.000210047 | S53: 1.000210047
C54: 20 | D54: 1 | E54: 1 | F54: 1 | G54: 1 | H54: 1 | I54: 1 | J54: 1 | K54: 1 | L54: 1 | M54: 1 | N54: 1 | O54: 1 | P54: 1.000210047 | Q54: 1.000210047 | R54: 1.000210047 | S54: 1.000210047
B57: LOADED FILE PATH
C58: D:\Sandbox\masterj\VAG_COM\drive\C\Program Files (x86)\ME7Logger_GUI v1.4\logs\FKKVS CALIBRATION_20121016_220856.csv

Sheet KFMIRL ADVISER
B2: KFMIRL MAP
C3: RPM LOAD | D3: 3 | E3: 10 | F3: 13 | G3: 15 | H3: 20 | I3: 25 | J3: 28 | K3: 30 | L3: 40 | M3: 45 | N3: 50 | O3: 60 | P3: 65 | Q3: 70 | R3: 80 | S3: 85 | T3: FACTOR | X3: KFMIRL ADVISER by MASTERJ v1.3
C4: 440 | D4: =IF(D$3=0,0,D$3*2+$C4*0.0015+($P$22*(D$3/100)-($C$19/$C$19*10)+$C4/$C$19*10)*$T4) -> 6.66 | E4: 20.66 | F4: 26.66 | G4: 22.92 | H4: 29.2 | I4: 35.49 | J4: 38.63 | K4: 41.79 | L4: 54.35 | M4: 61.92 | N4: 66.92 | O4: 79.5 | P4: 85.78 | Q4: 92.06 | R4: 104.65 | S4: 110.93 | T4: 0
C5: 750 | D5: 7.125 | E5: 21.125 | F5: 27.125 | G5: 22.92 | H5: 29.2 | I5: 35.49 | J5: 38.63 | K5: 41.79 | L5: 54.35 | M5: 61.92 | N5: 66.92 | O5: 79.5 | P5: 85.78 | Q5: 92.06 | R5: 104.65 | S5: 110.93 | T5: 0
C6: 950 | D6: 7.425 | E6: 21.425 | F6: 27.425 | G6: 22.08 | H6: 28.78 | I6: 35.51 | J6: 38.86 | K6: 42.21 | L6: 55.64 | M6: 62.27 | N6: 69.07 | O6: 82.53 | P6: 89.25 | Q6: 95.96 | R6: 109.39 | S6: 116.09 | T6: 0
C7: 1250 | D7: 7.850695946 | E7: 21.89094595 | F7: 27.90819595 | G7: 21.42 | H7: 27.94 | I7: 34.45 | J7: 37.71 | K7: 40.97 | L7: 53.98 | M7: 61.5 | N7: 67.01 | O7: 80.02 | P7: 86.51 | Q7: 93.03 | R7: 106.06 | S7: 112.57 | T7: 0.005
C8: 1450 | D8: 8.129094595 | E8: 22.20959459 | F8: 28.24409459 | G8: 21.26 | H8: 27.8 | I8: 34.36 | J8: 37.64 | K8: 40.92 | L8: 54.02 | M8: 60.63 | N8: 67.15 | O8: 80.25 | P8: 86.81 | Q8: 93.38 | R8: 106.48 | S8: 113.04 | T8: 0.01
C9: 1700 | D9: 8.486209459 | E9: 22.60695946 | F9: 28.65870946 | G9: 20.79 | H9: 27.45 | I9: 34.13 | J9: 37.45 | K9: 40.78 | L9: 54.12 | M9: 60.63 | N9: 67.43 | O9: 80.77 | P9: 87.42 | Q9: 94.08 | R9: 107.42 | S9: 114.07 | T9: 0.015
C10: 1850 | D10: 8.67375 | E10: 22.875 | F10: 28.96125 | G10: 20.77 | H10: 27.45 | I10: 34.1 | J10: 37.43 | K10: 40.78 | L10: 54.12 | M10: 62.37 | N10: 67.45 | O10: 80.79 | P10: 87.47 | Q10: 94.15 | R10: 107.49 | S10: 114.14 | T10: 0.025 | X10: marius.guscius@vwklubas.lt
C11: 2400 | D11: 9.504104054 | E11: 23.73755405 | F11: 29.83760405 | G11: 20.58 | H11: 27.16 | I11: 33.75 | J11: 37.06 | K11: 40.36 | L11: 53.56 | M11: 60.49 | N11: 66.73 | O11: 79.92 | P11: 86.51 | Q11: 93.12 | R11: 106.31 | S11: 112.9 | T11: 0.029
C12: 3100 | D12: 10.58625811 | E12: 24.80360811 | F12: 30.89675811 | G12: 20.13 | H12: 26.77 | I12: 33.38 | J12: 36.68 | K12: 40.01 | L12: 53.23 | M12: 60.59 | N12: 66.47 | O12: 79.71 | P12: 86.32 | Q12: 92.96 | R12: 106.2 | S12: 112.81 | T12: 0.027
C13: 3750 | D13: 11.58793919 | E13: 25.78918919 | F13: 31.87543919 | G13: 20.48 | H13: 26.86 | I13: 33.26 | J13: 36.45 | K13: 39.63 | L13: 52.38 | M13: 60.77 | N13: 65.16 | O13: 77.93 | P13: 84.31 | Q13: 90.68 | R13: 103.46 | S13: 109.83 | T13: 0.025
C14: 4250 | D14: 12.35886486 | E14: 26.51986486 | F14: 32.58886486 | G14: 19.81 | H14: 26.23 | I14: 32.65 | J14: 35.86 | K14: 39.07 | L14: 51.89 | M14: 60.8 | N14: 64.74 | O14: 77.58 | P14: 84 | Q14: 90.4 | R14: 103.24 | S14: 109.67 | T14: 0.02 | Z14: <=== | AA14: EDITABLE FIELDS!
C15: 4800 | D15: 13.1990473 | E15: 27.3197973 | F15: 33.3715473 | G15: 19.66 | H15: 25.92 | I15: 32.16 | J15: 35.27 | K15: 38.39 | L15: 50.88 | M15: 60.14 | N15: 63.38 | O15: 75.87 | P15: 82.1 | Q15: 88.34 | R15: 100.83 | S15: 107.06 | T15: 0.015
C16: 5600 | D16: 14.37456081 | E16: 28.17331081 | F16: 34.08706081 | G16: 19.1 | H16: 25.22 | I16: 31.01 | J16: 34.34 | K16: 37.48 | L16: 49.76 | M16: 59.86 | N16: 62.02 | O16: 74.28 | P16: 80.39 | Q16: 86.53 | R16: 98.79 | S16: 104.93 | T16: -0.025
C17: 6000 | D17: 14.88314189 | E17: 28.27939189 | F17: 34.02064189 | G17: 17.65 | H17: 24.33 | I17: 31.01 | J17: 34.36 | K17: 37.69 | L17: 51.05 | M17: 58.76 | N17: 64.38 | O17: 77.74 | P17: 84.42 | Q17: 91.1 | R17: 104.46 | S17: 111.14 | T17: -0.075
C18: 6750 | D18: 15.89355405 | E18: 29.16905405 | F18: 34.85855405 | G18: 17.91 | H18: 23.93 | I18: 29.93 | J18: 32.93 | K18: 35.95 | L18: 47.98 | M18: 53.32 | N18: 60 | O18: 72.02 | P18: 78.05 | Q18: 84.05 | R18: 96.07 | S18: 102.1 | T18: -0.09
C19: 7400 | D19: 16.6515 | E19: 29.605 | F19: 35.1565 | G19: 18.23 | H19: 24 | I19: 29.77 | J19: 32.65 | K19: 35.53 | L19: 47.04 | M19: 57.12 | N19: 58.57 | O19: 70.08 | P19: 75.85 | Q19: 81.61 | R19: 93.12 | S19: 98.88 | T19: -0.13
C20: FACTOR | D20: 0 | E20: 0 | F20: 0 | G20: =$P$26*0.8+0.4 -> 0.8 | H20: =$P$26*0.8+0.1 -> 0.5 | I20: =$P$26*1.1 -> 0.55 | J20: =$P$26*1.1 -> 0.55 | K20: =$P$26*0.9 -> 0.45 | L20: =$P$26*0.76 -> 0.38 | M20: =$P$26*0.48 -> 0.24 | N20: =$P$26*0.3 -> 0.15 | O20: =$P$26*0.18 -> 0.09 | P20: =$P$26*0.16 -> 0.08 | Q20: =$P$26*0.15 -> 0.075 | R20: =$P$26*0.12 -> 0.06 | S20: =$P$26*0.01 -> 0.005
C22: GENERATE LOW LOAD: | F22: YES | G22: MAX DESIRED BOOST: | J22: 0 | K22: BAR | M22: MAX CYLINDER CHARGE: | P22: 115
C24: PRESET: | E24: NONE | G24: TURBO TYPE: | J24: SMALL TURBO | M24: AMPLIFIED MAX CHARGE: | P24: )
G26: AGGRESSIVENESS: | J26: 50 | K26: % | M26: MULTIPLIER: | P26: =IF($J$26>135,1.35,IF($J$26<0,0,$J$26/100)) -> 0.5
H27: (0% - 135%) | J27: 20

Sheet KFMIOP CALCULATOR (16x16|11x16)
B2: KFMIRL MAP (INSERT WINOLS DATA HERE)
C3: RPM LOAD | D3: 3 | E3: 10 | F3: 13 | G3: 15 | H3: 20 | I3: 25 | J3: 28 | K3: 30 | L3: 40 | M3: 45 | N3: 50 | O3: 60 | P3: 65 | Q3: 80 | R3: 85 | S3: 95
C4: 440 | D4: 7.83 | E4: 16.64 | F4: 19.78 | G4: 22.92 | H4: 29.2 | I4: 35.49 | J4: 38.63 | K4: 41.79 | L4: 54.35 | M4: 61.92 | N4: 66.92 | O4: 79.5 | P4: 85.78 | Q4: 92.06 | R4: 104.65 | S4: 112
C5: 750 | D5: 7.83 | E5: 16.64 | F5: 19.78 | G5: 22.92 | H5: 29.2 | I5: 35.49 | J5: 38.63 | K5: 41.79 | L5: 54.35 | M5: 61.92 | N5: 66.92 | O5: 79.5 | P5: 85.78 | Q5: 92.06 | R5: 104.65 | S5: 110.93
C6: 950 | D6: 5.95 | E6: 15.35 | F6: 17.11 | G6: 22.08 | H6: 28.78 | I6: 35.51 | J6: 38.86 | K6: 42.21 | L6: 55.64 | M6: 62.27 | N6: 69.07 | O6: 82.53 | P6: 89.25 | Q6: 95.96 | R6: 109.39 | S6: 110
C7: 1250 | D7: 5.81 | E7: 14.93 | F7: 18.19 | G7: 21.42 | H7: 27.94 | I7: 34.45 | J7: 37.71 | K7: 40.97 | L7: 53.98 | M7: 61.5 | N7: 67.01 | O7: 80.02 | P7: 86.51 | Q7: 93.03 | R7: 106.06 | S7: 112
C8: 1450 | D8: 5.51 | E8: 14.7 | F8: 17.98 | G8: 21.26 | H8: 27.8 | I8: 34.36 | J8: 37.64 | K8: 40.92 | L8: 54.02 | M8: 60.63 | N8: 67.15 | O8: 80.25 | P8: 86.81 | Q8: 93.38 | R8: 106.48 | S8: 113.04
C9: 1700 | D9: 4.8 | E9: 14.13 | F9: 17.46 | G9: 20.79 | H9: 27.45 | I9: 34.13 | J9: 37.45 | K9: 40.78 | L9: 54.12 | M9: 60.63 | N9: 67.43 | O9: 80.77 | P9: 87.42 | Q9: 94.08 | R9: 107.42 | S9: 114.07
C10: 1850 | D10: 4.76 | E10: 14.11 | F10: 17.44 | G10: 20.77 | H10: 27.45 | I10: 34.1 | J10: 37.43 | K10: 40.78 | L10: 54.12 | M10: 62.37 | N10: 67.45 | O10: 80.79 | P10: 87.47 | Q10: 94.15 | R10: 107.49 | S10: 114.14
C11: 2400 | D11: 4.73 | E11: 13.97 | F11: 17.27 | G11: 20.58 | H11: 27.16 | I11: 33.75 | J11: 37.06 | K11: 40.36 | L11: 53.56 | M11: 60.49 | N11: 66.73 | O11: 79.92 | P11: 86.51 | Q11: 93.12 | R11: 106.31 | S11: 112.9
C12: 3100 | D12: 4.24 | E12: 13.52 | F12: 16.83 | G12: 20.13 | H12: 26.77 | I12: 33.38 | J12: 36.68 | K12: 40.01 | L12: 53.23 | M12: 60.59 | N12: 66.47 | O12: 79.71 | P12: 86.32 | Q12: 92.96 | R12: 106.2 | S12: 112.81
C13: 3750 | D13: 5.18 | E13: 14.11 | F13: 17.3 | G13: 20.48 | H13: 26.86 | I13: 33.26 | J13: 36.45 | K13: 39.63 | L13: 52.38 | M13: 60.77 | N13: 65.16 | O13: 77.93 | P13: 84.31 | Q13: 90.68 | R13: 103.46 | S13: 109.83
C14: 4250 | D14: 4.41 | E14: 13.38 | F14: 16.59 | G14: 19.81 | H14: 26.23 | I14: 32.65 | J14: 35.86 | K14: 39.07 | L14: 51.89 | M14: 60.8 | N14: 64.74 | O14: 77.58 | P14: 84 | Q14: 90.4 | R14: 103.24 | S14: 109.67
C15: 4800 | D15: 4.69 | E15: 13.43 | F15: 16.55 | G15: 19.66 | H15: 25.92 | I15: 32.16 | J15: 35.27 | K15: 38.39 | L15: 50.88 | M15: 60.14 | N15: 63.38 | O15: 75.87 | P15: 82.1 | Q15: 88.34 | R15: 100.83 | S15: 107.06
C16: 5600 | D16: 4.38 | E16: 12.96 | F16: 16.03 | G16: 19.1 | H16: 25.22 | I16: 31.01 | J16: 34.34 | K16: 37.48 | L16: 49.76 | M16: 59.86 | N16: 62.02 | O16: 74.28 | P16: 80.39 | Q16: 86.53 | R16: 98.79 | S16: 104.93
C17: 6000 | D17: 1.62 | E17: 10.97 | F17: 14.32 | G17: 17.65 | H17: 24.33 | I17: 31.01 | J17: 34.36 | K17: 37.69 | L17: 51.05 | M17: 58.76 | N17: 64.38 | O17: 77.74 | P17: 84.42 | Q17: 91.1 | R17: 104.46 | S17: 111.14
C18: 6750 | D18: 3.47 | E18: 11.91 | F18: 14.91 | G18: 17.91 | H18: 23.93 | I18: 29.93 | J18: 32.93 | K18: 35.95 | L18: 47.98 | M18: 53.32 | N18: 60 | O18: 72.02 | P18: 78.05 | Q18: 84.05 | R18: 96.07 | S18: 102.1
C19: 7400 | D19: 4.43 | E19: 12.49 | F19: 15.38 | G19: 18.23 | H19: 24 | I19: 29.77 | J19: 32.65 | K19: 35.53 | L19: 47.04 | M19: 57.12 | N19: 58.57 | O19: 70.08 | P19: 75.85 | Q19: 81.61 | R19: 93.12 | S19: 98.88
B22: KFMIOP MAP
C23: RPM LOAD | D23: 15 | E23: 29 | F23: 36 | G23: 56 | H23: 62 | I23: 69 | J23: 83 | K23: 89 | L23: 96 | M23: 109 | N23: 110 | R23: KFMIOP CALCULATOR by MASTERJ v1.8
C24: 440 | D24: =MATCH(D$23, $D44:$CY44, 1) -> 9 | E24: =MATCH(E$23, $D44:$CY44, 1) -> 20 | F24: 26 | G24: 42 | H24: 46 | I24: 52 | J24: 63 | K24: 73 | L24: 82 | M24: 86 | N24: 86
C25: 750 | D25: =MATCH(D$23, $D45:$CY45, 1) -> 9 | E25: 20 | F25: 26 | G25: 42 | H25: 46 | I25: 52 | J25: 63 | K25: 73 | L25: 82 | M25: 86 | N25: 86
C26: 950 | D26: 10 | E26: 21 | F26: 26 | G26: 41 | H26: 45 | I26: 50 | J26: 61 | K26: 65 | L26: 81 | M26: 85 | N26: 96
C27: 1250 | D27: 11 | E27: 21 | F27: 27 | G27: 42 | H27: 46 | I27: 52 | J27: 63 | K27: 71 | L27: 82 | M27: 86 | N27: 86
C28: 1450 | D28: 11 | E28: 21 | F28: 27 | G28: 42 | H28: 47 | I28: 52 | J28: 63 | K28: 71 | L28: 82 | M28: 86 | N28: 86
C29: 1700 | D29: 11 | E29: 22 | F29: 27 | G29: 42 | H29: 47 | I29: 52 | J29: 62 | K29: 69 | L29: 81 | M29: 86 | N29: 86
C30: 1850 | D30: 11 | E30: 22 | F30: 27 | G30: 42 | H30: 45 | I30: 52 | J30: 62 | K30: 69 | L30: 81 | M30: 86 | N30: 86 | R30: marius.guscius@vwklubas.lt
C31: 2400 | D31: 11 | E31: 22 | F31: 28 | G31: 42 | H31: 47 | I31: 52 | J31: 63 | K31: 71 | L31: 82 | M31: 86 | N31: 86
C32: 3100 | D32: 12 | E32: 22 | F32: 28 | G32: 42 | H32: 47 | I32: 52 | J32: 63 | K32: 72 | L32: 82 | M32: 86 | N32: 86
C33: 3750 | D33: 11 | E33: 22 | F33: 28 | G33: 43 | H33: 47 | I33: 54 | J33: 64 | K33: 77 | L33: 83 | M33: 86 | N33: 99 | S33: <=== | T33: EDITABLE FIELDS!
C34: 4250 | D34: 12 | E34: 23 | F34: 29 | G34: 43 | H34: 47 | I34: 54 | J34: 65 | K34: 77 | L34: 83 | M34: 86 | N34: 99
C35: 4800 | D35: 12 | E35: 23 | F35: 29 | G35: 43 | H35: 48 | I35: 55 | J35: 68 | K35: 81 | L35: 84 | M35: 99 | N35: 99
C36: 5600 | D36: 12 | E36: 24 | F36: 30 | G36: 44 | H36: 50 | I36: 56 | J36: 72 | K36: 82 | L36: 84 | M36: 99 | N36: 99
C37: 6000 | D37: 14 | E37: 24 | F37: 29 | G37: 44 | H37: 48 | I37: 54 | J37: 64 | K37: 76 | L37: 82 | M37: 86 | N37: 86
C38: 6750 | D38: 14 | E38: 25 | F38: 31 | G38: 48 | H38: 52 | I38: 58 | J38: 78 | K38: 83 | L38: 85 | M38: 99 | N38: 99
C39: 7400 | D39: 13 | E39: 25 | F39: 31 | G39: 45 | H39: 53 | I39: 60 | J39: 81 | K39: 84 | L39: 86 | M39: 99 | N39: 99
B42: WEIGHT FACTORS (HIDDEN)
C43: RPM LOAD | D43: 0 | E43: 1 | F43: 2 | G43: 3 | H43: 4 | I43: 5 | J43: 6 | K43: 7 | L43: 8 | M43: 9 | N43: 10 | O43: 11 | P43: 12 | Q43: 13 | R43: 14 | S43: 15 | T43: 16 | U43: 17 | V43: 18 | W43: 19 | X43: 20 | Y43: 21 | Z43: 22 | AA43: 23 | AB43: 24 | AC43: 25 | AD43: 26 | AE43: 27 | AF43: 28 | AG43: 29 | AH43: 30 | AI43: 31 | AJ43: 32 | AK43: 33 | AL43: 34 | AM43: 35 | AN43: 36 | AO43: 37 | AP43: 38 | AQ43: 39 | AR43: 40 | AS43: 41 | AT43: 42 | AU43: 43 | AV43: 44 | AW43: 45 | AX43: 46 | AY43: 47 | AZ43: 48 | BA43: 49 | BB43: 50 | BC43: 51 | BD43: 52 | BE43: 53 | BF43: 54 | BG43: 55 | BH43: 56 | BI43: 57 | BJ43: 58 | BK43: 59 | BL43: 60 | BM43: 61 | BN43: 62 | BO43: 63 | BP43: 64 | BQ43: 65 | BR43: 66 | BS43: 67 | BT43: 68 | BU43: 69 | BV43: 70 | BW43: 71 | BX43: 72 | BY43: 73 | BZ43: 74 | CA43: 75 | CB43: 76 | CC43: 77 | CD43: 78 | CE43: 79 | CF43: 80 | CG43: 81 | CH43: 82 | CI43: 83 | CJ43: 84 | CK43: 85 | CL43: 86 | CM43: 87 | CN43: 88 | CO43: 89 | CP43: 90 | CQ43: 91 | CR43: 92 | CS43: 93 | CT43: 94 | CU43: 95 | CV43: 96 | CW43: 97 | CX43: 98 | CY43: 99
C44: =C24 -> 440 | D44: =$D44+($G44-$D44)/3*1 -> 2.61 | E44: =$D44+($G44-$D44)/3*2 -> 6.09 | F44: =$D44+($G44-$D44)/3*3 -> 7.83 | G44: 7.83 | H44: =$G44+($N44-$G44)/7*1 -> 9.088571429 | I44: =$G44+($N44-$G44)/7*2 -> 10.34714286 | J44: =$G44+($N44-$G44)/7*3 -> 11.60571429 | K44: =$G44+($N44-$G44)/7*4 -> 12.86428571 | L44: =$G44+($N44-$G44)/7*5 -> 14.12285714 | M44: =$G44+($N44-$G44)/7*6 -> 15.38142857 | N44: 16.64 | O44: =$N44+($Q44-$N44)/3*1 -> 17.68666667 | P44: =$N44+($Q44-$N44)/3*2 -> 18.73333333 | Q44: 19.78 | R44: =$Q44+($S44-$Q44)/2*1 -> 21.35 | S44: 22.92 | T44: =$S44+($X44-$S44)/5*1 -> 24.176 | U44: =$S44+($X44-$S44)/5*2 -> 25.432 | V44: =$S44+($X44-$S44)/5*3 -> 26.688 | W44: =$S44+($X44-$S44)/5*4 -> 27.944 | X44: 29.2 | Y44: =$X44+($AC44-$X44)/5*1 -> 30.458 | Z44: =$X44+($AC44-$X44)/5*2 -> 31.716 | AA44: =$X44+($AC44-$X44)/5*3 -> 32.974 | AB44: =$X44+($AC44-$X44)/5*4 -> 34.232 | AC44: 35.49 | AD44: =$AC44+($AF44-$AC44)/3*1 -> 36.53666667 | AE44: =$AC44+($AF44-$AC44)/3*2 -> 37.58333333 | AF44: 38.63 | AG44: =$AF44+($AH44-$AF44)/2*1 -> 40.21 | AH44: 41.79 | AI44: =$AH44+($AR44-$AH44)/10*1 -> 43.046 | AJ44: =$AH44+($AR44-$AH44)/10*2 -> 44.302 | AK44: =$AH44+($AR44-$AH44)/10*3 -> 45.558 | AL44: =$AH44+($AR44-$AH44)/10*4 -> 46.814 | AM44: =$AH44+($AR44-$AH44)/10*5 -> 48.07 | AN44: =$AH44+($AR44-$AH44)/10*6 -> 49.326 | AO44: =$AH44+($AR44-$AH44)/10*7 -> 50.582 | AP44: =$AH44+($AR44-$AH44)/10*8 -> 51.838 | AQ44: =$AH44+($AR44-$AH44)/10*9 -> 53.094 | AR44: 54.35 | AS44: =$AR44+($AW44-$AR44)/5*1 -> 55.864 | AT44: =$AR44+($AW44-$AR44)/5*2 -> 57.378 | AU44: =$AR44+($AW44-$AR44)/5*3 -> 58.892 | AV44: =$AR44+($AW44-$AR44)/5*4 -> 60.406 | AW44: 61.92 | AX44: =$AW44+($BB44-$AW44)/5*1 -> 62.92 | AY44: =$AW44+($BB44-$AW44)/5*2 -> 63.92 | AZ44: =$AW44+($BB44-$AW44)/5*3 -> 64.92 | BA44: =$AW44+($BB44-$AW44)/5*4 -> 65.92 | BB44: 66.92 | BC44: =$BB44+($BL44-$BB44)/10*1 -> 68.178 | BD44: =$BB44+($BL44-$BB44)/10*2 -> 69.436 | BE44: =$BB44+($BL44-$BB44)/10*3 -> 70.694 | BF44: =$BB44+($BL44-$BB44)/10*4 -> 71.952 | BG44: =$BB44+($BL44-$BB44)/10*5 -> 73.21 | BH44: =$BB44+($BL44-$BB44)/10*6 -> 74.468 | BI44: =$BB44+($BL44-$BB44)/10*7 -> 75.726 | BJ44: =$BB44+($BL44-$BB44)/10*8 -> 76.984 | BK44: =$BB44+($BL44-$BB44)/10*9 -> 78.242 | BL44: 79.5 | BM44: =$BL44+($BQ44-$BL44)/5*1 -> 80.756 | BN44: =$BL44+($BQ44-$BL44)/5*2 -> 82.012 | BO44: =$BL44+($BQ44-$BL44)/5*3 -> 83.268 | BP44: =$BL44+($BQ44-$BL44)/5*4 -> 84.524 | BQ44: 85.78 | BR44: =$BQ44+($CF44-$BQ44)/15*1 -> 86.19866667 | BS44: =$BQ44+($CF44-$BQ44)/15*2 -> 86.61733333 | BT44: =$BQ44+($CF44-$BQ44)/15*3 -> 87.036 | BU44: =$BQ44+($CF44-$BQ44)/15*4 -> 87.45466667 | BV44: =$BQ44+($CF44-$BQ44)/15*5 -> 87.87333333 | BW44: =$BQ44+($CF44-$BQ44)/15*6 -> 88.292 | BX44: =$BQ44+($CF44-$BQ44)/15*7 -> 88.71066667 | BY44: =$BQ44+($CF44-$BQ44)/15*8 -> 89.12933333 | BZ44: =$BQ44+($CF44-$BQ44)/15*9 -> 89.548 | CA44: =$BQ44+($CF44-$BQ44)/15*10 -> 89.96666667 | CB44: =$BQ44+($CF44-$BQ44)/15*11 -> 90.38533333 | CC44: =$BQ44+($CF44-$BQ44)/15*12 -> 90.804 | CD44: =$BQ44+($CF44-$BQ44)/15*13 -> 91.22266667 | CE44: =$BQ44+($CF44-$BQ44)/15*14 -> 91.64133333 | CF44: 92.06 | CG44: =$CF44+($CK44-$CF44)/5*1 -> 94.578 | CH44: =$CF44+($CK44-$CF44)/5*2 -> 97.096 | CI44: =$CF44+($CK44-$CF44)/5*3 -> 99.614 | CJ44: =$CF44+($CK44-$CF44)/5*4 -> 102.132 | CK44: 104.65 | CL44: =$CK44+($CY44-$CK44)/14*1 ->  | CM44: =$CK44+($CY44-$CK44)/14*2 ->  | CN44: =$CK44+($CY44-$CK44)/14*3 ->  | CO44: =$CK44+($CY44-$CK44)/14*4 ->  | CP44: =$CK44+($CY44-$CK44)/14*5 ->  | CQ44: =$CK44+($CY44-$CK44)/14*6 ->  | CR44: =$CK44+($CY44-$CK44)/14*7 ->  | CS44: =$CK44+($CY44-$CK44)/14*8 ->  | CT44: =$CK44+($CY44-$CK44)/14*9 ->  | CU44: 112 | CV44: =$CK44+($CY44-$CK44)/14*11 ->  | CW44: =$CK44+($CY44-$CK44)/14*12 ->  | CX44: 111 | CY44: =$BB44+($BB44-$BB44)/0*49 -> 
C45: =C25 -> 750 | D45: 2.61 | E45: 6.09 | F45: 7.83 | G45: 7.83 | H45: 9.088571429 | I45: 10.34714286 | J45: 11.60571429 | K45: 12.86428571 | L45: 14.12285714 | M45: 15.38142857 | N45: 16.64 | O45: 17.68666667 | P45: 18.73333333 | Q45: 19.78 | R45: 21.35 | S45: 22.92 | T45: 24.176 | U45: 25.432 | V45: 26.688 | W45: 27.944 | X45: 29.2 | Y45: 30.458 | Z45: 31.716 | AA45: 32.974 | AB45: 34.232 | AC45: 35.49 | AD45: 36.53666667 | AE45: 37.58333333 | AF45: 38.63 | AG45: 40.21 | AH45: 41.79 | AI45: 43.046 | AJ45: 44.302 | AK45: 45.558 | AL45: 46.814 | AM45: 48.07 | AN45: 49.326 | AO45: 50.582 | AP45: 51.838 | AQ45: 53.094 | AR45: 54.35 | AS45: 55.864 | AT45: 57.378 | AU45: 58.892 | AV45: 60.406 | AW45: 61.92 | AX45: 62.92 | AY45: 63.92 | AZ45: 64.92 | BA45: 65.92 | BB45: 66.92 | BC45: 68.178 | BD45: 69.436 | BE45: 70.694 | BF45: 71.952 | BG45: 73.21 | BH45: 74.468 | BI45: 75.726 | BJ45: 76.984 | BK45: 78.242 | BL45: 79.5 | BM45: 80.756 | BN45: 82.012 | BO45: 83.268 | BP45: 84.524 | BQ45: 85.78 | BR45: 86.19866667 | BS45: 86.61733333 | BT45: 87.036 | BU45: 87.45466667 | BV45: 87.87333333 | BW45: 88.292 | BX45: 88.71066667 | BY45: 89.12933333 | BZ45: 89.548 | CA45: 89.96666667 | CB45: 90.38533333 | CC45: 90.804 | CD45: 91.22266667 | CE45: 91.64133333 | CF45: 92.06 | CG45: 94.578 | CH45: 97.096 | CI45: 99.614 | CJ45: 102.132 | CK45: 104.65 | CU45: 110.93 | CX45: 110.93
C46: 950 | D46: 1.983333333 | E46: 4.627777778 | F46: 5.95 | G46: 5.95 | H46: 7.292857143 | I46: 8.635714286 | J46: 9.978571429 | K46: 11.32142857 | L46: 12.66428571 | M46: 14.00714286 | N46: 15.35 | O46: 15.93666667 | P46: 16.52333333 | Q46: 17.11 | R46: 19.595 | S46: 22.08 | T46: 23.42 | U46: 24.76 | V46: 26.1 | W46: 27.44 | X46: 28.78 | Y46: 30.126 | Z46: 31.472 | AA46: 32.818 | AB46: 34.164 | AC46: 35.51 | AD46: 36.62666667 | AE46: 37.74333333 | AF46: 38.86 | AG46: 40.535 | AH46: 42.21 | AI46: 43.553 | AJ46: 44.896 | AK46: 46.239 | AL46: 47.582 | AM46: 48.925 | AN46: 50.268 | AO46: 51.611 | AP46: 52.954 | AQ46: 54.297 | AR46: 55.64 | AS46: 56.966 | AT46: 58.292 | AU46: 59.618 | AV46: 60.944 | AW46: 62.27 | AX46: 63.63 | AY46: 64.99 | AZ46: 66.35 | BA46: 67.71 | BB46: 69.07 | BC46: 70.416 | BD46: 71.762 | BE46: 73.108 | BF46: 74.454 | BG46: 75.8 | BH46: 77.146 | BI46: 78.492 | BJ46: 79.838 | BK46: 81.184 | BL46: 82.53 | BM46: 83.874 | BN46: 85.218 | BO46: 86.562 | BP46: 87.906 | BQ46: 89.25 | BR46: 89.69733333 | BS46: 90.14466667 | BT46: 90.592 | BU46: 91.03933333 | BV46: 91.48666667 | BW46: 91.934 | BX46: 92.38133333 | BY46: 92.82866667 | BZ46: 93.276 | CA46: 93.72333333 | CB46: 94.17066667 | CC46: 94.618 | CD46: 95.06533333 | CE46: 95.51266667 | CF46: 95.96 | CG46: 98.646 | CH46: 101.332 | CI46: 104.018 | CJ46: 106.704 | CK46: 109.39 | CU46: 110 | CX46: 116.09
C47: 1250 | D47: 1.936666667 | E47: 4.518888889 | F47: 5.81 | G47: 5.81 | H47: 7.112857143 | I47: 8.415714286 | J47: 9.718571429 | K47: 11.02142857 | L47: 12.32428571 | M47: 13.62714286 | N47: 14.93 | O47: 16.01666667 | P47: 17.10333333 | Q47: 18.19 | R47: 19.805 | S47: 21.42 | T47: 22.724 | U47: 24.028 | V47: 25.332 | W47: 26.636 | X47: 27.94 | Y47: 29.242 | Z47: 30.544 | AA47: 31.846 | AB47: 33.148 | AC47: 34.45 | AD47: 35.53666667 | AE47: 36.62333333 | AF47: 37.71 | AG47: 39.34 | AH47: 40.97 | AI47: 42.271 | AJ47: 43.572 | AK47: 44.873 | AL47: 46.174 | AM47: 47.475 | AN47: 48.776 | AO47: 50.077 | AP47: 51.378 | AQ47: 52.679 | AR47: 53.98 | AS47: 55.484 | AT47: 56.988 | AU47: 58.492 | AV47: 59.996 | AW47: 61.5 | AX47: 62.602 | AY47: 63.704 | AZ47: 64.806 | BA47: 65.908 | BB47: 67.01 | BC47: 68.311 | BD47: 69.612 | BE47: 70.913 | BF47: 72.214 | BG47: 73.515 | BH47: 74.816 | BI47: 76.117 | BJ47: 77.418 | BK47: 78.719 | BL47: 80.02 | BM47: 81.318 | BN47: 82.616 | BO47: 83.914 | BP47: 85.212 | BQ47: 86.51 | BR47: 86.94466667 | BS47: 87.37933333 | BT47: 87.814 | BU47: 88.24866667 | BV47: 88.68333333 | BW47: 89.118 | BX47: 89.55266667 | BY47: 89.98733333 | BZ47: 90.422 | CA47: 90.85666667 | CB47: 91.29133333 | CC47: 91.726 | CD47: 92.16066667 | CE47: 92.59533333 | CF47: 93.03 | CG47: 95.636 | CH47: 98.242 | CI47: 100.848 | CJ47: 103.454 | CK47: 106.06 | CU47: 112 | CX47: 112.57
C48: 1450 | D48: 1.836666667 | E48: 4.285555556 | F48: 5.51 | G48: 5.51 | H48: 6.822857143 | I48: 8.135714286 | J48: 9.448571429 | K48: 10.76142857 | L48: 12.07428571 | M48: 13.38714286 | N48: 14.7 | O48: 15.79333333 | P48: 16.88666667 | Q48: 17.98 | R48: 19.62 | S48: 21.26 | T48: 22.568 | U48: 23.876 | V48: 25.184 | W48: 26.492 | X48: 27.8 | Y48: 29.112 | Z48: 30.424 | AA48: 31.736 | AB48: 33.048 | AC48: 34.36 | AD48: 35.45333333 | AE48: 36.54666667 | AF48: 37.64 | AG48: 39.28 | AH48: 40.92 | AI48: 42.23 | AJ48: 43.54 | AK48: 44.85 | AL48: 46.16 | AM48: 47.47 | AN48: 48.78 | AO48: 50.09 | AP48: 51.4 | AQ48: 52.71 | AR48: 54.02 | AS48: 55.342 | AT48: 56.664 | AU48: 57.986 | AV48: 59.308 | AW48: 60.63 | AX48: 61.934 | AY48: 63.238 | AZ48: 64.542 | BA48: 65.846 | BB48: 67.15 | BC48: 68.46 | BD48: 69.77 | BE48: 71.08 | BF48: 72.39 | BG48: 73.7 | BH48: 75.01 | BI48: 76.32 | BJ48: 77.63 | BK48: 78.94 | BL48: 80.25 | BM48: 81.562 | BN48: 82.874 | BO48: 84.186 | BP48: 85.498 | BQ48: 86.81 | BR48: 87.248 | BS48: 87.686 | BT48: 88.124 | BU48: 88.562 | BV48: 89 | BW48: 89.438 | BX48: 89.876 | BY48: 90.314 | BZ48: 90.752 | CA48: 91.19 | CB48: 91.628 | CC48: 92.066 | CD48: 92.504 | CE48: 92.942 | CF48: 93.38 | CG48: 96 | CH48: 98.62 | CI48: 101.24 | CJ48: 103.86 | CK48: 106.48 | CU48: 113.04 | CX48: 113.04
C49: 1700 | D49: 1.6 | E49: 3.733333333 | F49: 4.8 | G49: 4.8 | H49: 6.132857143 | I49: 7.465714286 | J49: 8.798571429 | K49: 10.13142857 | L49: 11.46428571 | M49: 12.79714286 | N49: 14.13 | O49: 15.24 | P49: 16.35 | Q49: 17.46 | R49: 19.125 | S49: 20.79 | T49: 22.122 | U49: 23.454 | V49: 24.786 | W49: 26.118 | X49: 27.45 | Y49: 28.786 | Z49: 30.122 | AA49: 31.458 | AB49: 32.794 | AC49: 34.13 | AD49: 35.23666667 | AE49: 36.34333333 | AF49: 37.45 | AG49: 39.115 | AH49: 40.78 | AI49: 42.114 | AJ49: 43.448 | AK49: 44.782 | AL49: 46.116 | AM49: 47.45 | AN49: 48.784 | AO49: 50.118 | AP49: 51.452 | AQ49: 52.786 | AR49: 54.12 | AS49: 55.422 | AT49: 56.724 | AU49: 58.026 | AV49: 59.328 | AW49: 60.63 | AX49: 61.99 | AY49: 63.35 | AZ49: 64.71 | BA49: 66.07 | BB49: 67.43 | BC49: 68.764 | BD49: 70.098 | BE49: 71.432 | BF49: 72.766 | BG49: 74.1 | BH49: 75.434 | BI49: 76.768 | BJ49: 78.102 | BK49: 79.436 | BL49: 80.77 | BM49: 82.1 | BN49: 83.43 | BO49: 84.76 | BP49: 86.09 | BQ49: 87.42 | BR49: 87.864 | BS49: 88.308 | BT49: 88.752 | BU49: 89.196 | BV49: 89.64 | BW49: 90.084 | BX49: 90.528 | BY49: 90.972 | BZ49: 91.416 | CA49: 91.86 | CB49: 92.304 | CC49: 92.748 | CD49: 93.192 | CE49: 93.636 | CF49: 94.08 | CG49: 96.748 | CH49: 99.416 | CI49: 102.084 | CJ49: 104.752 | CK49: 107.42 | CU49: 114.07 | CX49: 114.07
C50: 1850 | D50: 1.586666667 | E50: 3.702222222 | F50: 4.76 | G50: 4.76 | H50: 6.095714286 | I50: 7.431428571 | J50: 8.767142857 | K50: 10.10285714 | L50: 11.43857143 | M50: 12.77428571 | N50: 14.11 | O50: 15.22 | P50: 16.33 | Q50: 17.44 | R50: 19.105 | S50: 20.77 | T50: 22.106 | U50: 23.442 | V50: 24.778 | W50: 26.114 | X50: 27.45 | Y50: 28.78 | Z50: 30.11 | AA50: 31.44 | AB50: 32.77 | AC50: 34.1 | AD50: 35.21 | AE50: 36.32 | AF50: 37.43 | AG50: 39.105 | AH50: 40.78 | AI50: 42.114 | AJ50: 43.448 | AK50: 44.782 | AL50: 46.116 | AM50: 47.45 | AN50: 48.784 | AO50: 50.118 | AP50: 51.452 | AQ50: 52.786 | AR50: 54.12 | AS50: 55.77 | AT50: 57.42 | AU50: 59.07 | AV50: 60.72 | AW50: 62.37 | AX50: 63.386 | AY50: 64.402 | AZ50: 65.418 | BA50: 66.434 | BB50: 67.45 | BC50: 68.784 | BD50: 70.118 | BE50: 71.452 | BF50: 72.786 | BG50: 74.12 | BH50: 75.454 | BI50: 76.788 | BJ50: 78.122 | BK50: 79.456 | BL50: 80.79 | BM50: 82.126 | BN50: 83.462 | BO50: 84.798 | BP50: 86.134 | BQ50: 87.47 | BR50: 87.91533333 | BS50: 88.36066667 | BT50: 88.806 | BU50: 89.25133333 | BV50: 89.69666667 | BW50: 90.142 | BX50: 90.58733333 | BY50: 91.03266667 | BZ50: 91.478 | CA50: 91.92333333 | CB50: 92.36866667 | CC50: 92.814 | CD50: 93.25933333 | CE50: 93.70466667 | CF50: 94.15 | CG50: 96.818 | CH50: 99.486 | CI50: 102.154 | CJ50: 104.822 | CK50: 107.49 | CU50: 114.14 | CX50: 114.14
C51: 2400 | D51: 1.576666667 | E51: 3.678888889 | F51: 4.73 | G51: 4.73 | H51: 6.05 | I51: 7.37 | J51: 8.69 | K51: 10.01 | L51: 11.33 | M51: 12.65 | N51: 13.97 | O51: 15.07 | P51: 16.17 | Q51: 17.27 | R51: 18.925 | S51: 20.58 | T51: 21.896 | U51: 23.212 | V51: 24.528 | W51: 25.844 | X51: 27.16 | Y51: 28.478 | Z51: 29.796 | AA51: 31.114 | AB51: 32.432 | AC51: 33.75 | AD51: 34.85333333 | AE51: 35.95666667 | AF51: 37.06 | AG51: 38.71 | AH51: 40.36 | AI51: 41.68 | AJ51: 43 | AK51: 44.32 | AL51: 45.64 | AM51: 46.96 | AN51: 48.28 | AO51: 49.6 | AP51: 50.92 | AQ51: 52.24 | AR51: 53.56 | AS51: 54.946 | AT51: 56.332 | AU51: 57.718 | AV51: 59.104 | AW51: 60.49 | AX51: 61.738 | AY51: 62.986 | AZ51: 64.234 | BA51: 65.482 | BB51: 66.73 | BC51: 68.049 | BD51: 69.368 | BE51: 70.687 | BF51: 72.006 | BG51: 73.325 | BH51: 74.644 | BI51: 75.963 | BJ51: 77.282 | BK51: 78.601 | BL51: 79.92 | BM51: 81.238 | BN51: 82.556 | BO51: 83.874 | BP51: 85.192 | BQ51: 86.51 | BR51: 86.95066667 | BS51: 87.39133333 | BT51: 87.832 | BU51: 88.27266667 | BV51: 88.71333333 | BW51: 89.154 | BX51: 89.59466667 | BY51: 90.03533333 | BZ51: 90.476 | CA51: 90.91666667 | CB51: 91.35733333 | CC51: 91.798 | CD51: 92.23866667 | CE51: 92.67933333 | CF51: 93.12 | CG51: 95.758 | CH51: 98.396 | CI51: 101.034 | CJ51: 103.672 | CK51: 106.31 | CU51: 112.9 | CX51: 112.9
C52: 3100 | D52: 1.413333333 | E52: 3.297777778 | F52: 4.24 | G52: 4.24 | H52: 5.565714286 | I52: 6.891428571 | J52: 8.217142857 | K52: 9.542857143 | L52: 10.86857143 | M52: 12.19428571 | N52: 13.52 | O52: 14.62333333 | P52: 15.72666667 | Q52: 16.83 | R52: 18.48 | S52: 20.13 | T52: 21.458 | U52: 22.786 | V52: 24.114 | W52: 25.442 | X52: 26.77 | Y52: 28.092 | Z52: 29.414 | AA52: 30.736 | AB52: 32.058 | AC52: 33.38 | AD52: 34.48 | AE52: 35.58 | AF52: 36.68 | AG52: 38.345 | AH52: 40.01 | AI52: 41.332 | AJ52: 42.654 | AK52: 43.976 | AL52: 45.298 | AM52: 46.62 | AN52: 47.942 | AO52: 49.264 | AP52: 50.586 | AQ52: 51.908 | AR52: 53.23 | AS52: 54.702 | AT52: 56.174 | AU52: 57.646 | AV52: 59.118 | AW52: 60.59 | AX52: 61.766 | AY52: 62.942 | AZ52: 64.118 | BA52: 65.294 | BB52: 66.47 | BC52: 67.794 | BD52: 69.118 | BE52: 70.442 | BF52: 71.766 | BG52: 73.09 | BH52: 74.414 | BI52: 75.738 | BJ52: 77.062 | BK52: 78.386 | BL52: 79.71 | BM52: 81.032 | BN52: 82.354 | BO52: 83.676 | BP52: 84.998 | BQ52: 86.32 | BR52: 86.76266667 | BS52: 87.20533333 | BT52: 87.648 | BU52: 88.09066667 | BV52: 88.53333333 | BW52: 88.976 | BX52: 89.41866667 | BY52: 89.86133333 | BZ52: 90.304 | CA52: 90.74666667 | CB52: 91.18933333 | CC52: 91.632 | CD52: 92.07466667 | CE52: 92.51733333 | CF52: 92.96 | CG52: 95.608 | CH52: 98.256 | CI52: 100.904 | CJ52: 103.552 | CK52: 106.2 | CU52: 112.81 | CX52: 112.81
C53: 3750 | D53: 1.726666667 | E53: 4.028888889 | F53: 5.18 | G53: 5.18 | H53: 6.455714286 | I53: 7.731428571 | J53: 9.007142857 | K53: 10.28285714 | L53: 11.55857143 | M53: 12.83428571 | N53: 14.11 | O53: 15.17333333 | P53: 16.23666667 | Q53: 17.3 | R53: 18.89 | S53: 20.48 | T53: 21.756 | U53: 23.032 | V53: 24.308 | W53: 25.584 | X53: 26.86 | Y53: 28.14 | Z53: 29.42 | AA53: 30.7 | AB53: 31.98 | AC53: 33.26 | AD53: 34.32333333 | AE53: 35.38666667 | AF53: 36.45 | AG53: 38.04 | AH53: 39.63 | AI53: 40.905 | AJ53: 42.18 | AK53: 43.455 | AL53: 44.73 | AM53: 46.005 | AN53: 47.28 | AO53: 48.555 | AP53: 49.83 | AQ53: 51.105 | AR53: 52.38 | AS53: 54.058 | AT53: 55.736 | AU53: 57.414 | AV53: 59.092 | AW53: 60.77 | AX53: 61.648 | AY53: 62.526 | AZ53: 63.404 | BA53: 64.282 | BB53: 65.16 | BC53: 66.437 | BD53: 67.714 | BE53: 68.991 | BF53: 70.268 | BG53: 71.545 | BH53: 72.822 | BI53: 74.099 | BJ53: 75.376 | BK53: 76.653 | BL53: 77.93 | BM53: 79.206 | BN53: 80.482 | BO53: 81.758 | BP53: 83.034 | BQ53: 84.31 | BR53: 84.73466667 | BS53: 85.15933333 | BT53: 85.584 | BU53: 86.00866667 | BV53: 86.43333333 | BW53: 86.858 | BX53: 87.28266667 | BY53: 87.70733333 | BZ53: 88.132 | CA53: 88.55666667 | CB53: 88.98133333 | CC53: 89.406 | CD53: 89.83066667 | CE53: 90.25533333 | CF53: 90.68 | CG53: 93.236 | CH53: 95.792 | CI53: 98.348 | CJ53: 100.904 | CK53: 103.46 | CU53: 109.83 | CX53: 109.83
C54: 4250 | D54: 1.47 | E54: 3.43 | F54: 4.41 | G54: 4.41 | H54: 5.691428571 | I54: 6.972857143 | J54: 8.254285714 | K54: 9.535714286 | L54: 10.81714286 | M54: 12.09857143 | N54: 13.38 | O54: 14.45 | P54: 15.52 | Q54: 16.59 | R54: 18.2 | S54: 19.81 | T54: 21.094 | U54: 22.378 | V54: 23.662 | W54: 24.946 | X54: 26.23 | Y54: 27.514 | Z54: 28.798 | AA54: 30.082 | AB54: 31.366 | AC54: 32.65 | AD54: 33.72 | AE54: 34.79 | AF54: 35.86 | AG54: 37.465 | AH54: 39.07 | AI54: 40.352 | AJ54: 41.634 | AK54: 42.916 | AL54: 44.198 | AM54: 45.48 | AN54: 46.762 | AO54: 48.044 | AP54: 49.326 | AQ54: 50.608 | AR54: 51.89 | AS54: 53.672 | AT54: 55.454 | AU54: 57.236 | AV54: 59.018 | AW54: 60.8 | AX54: 61.588 | AY54: 62.376 | AZ54: 63.164 | BA54: 63.952 | BB54: 64.74 | BC54: 66.024 | BD54: 67.308 | BE54: 68.592 | BF54: 69.876 | BG54: 71.16 | BH54: 72.444 | BI54: 73.728 | BJ54: 75.012 | BK54: 76.296 | BL54: 77.58 | BM54: 78.864 | BN54: 80.148 | BO54: 81.432 | BP54: 82.716 | BQ54: 84 | BR54: 84.42666667 | BS54: 84.85333333 | BT54: 85.28 | BU54: 85.70666667 | BV54: 86.13333333 | BW54: 86.56 | BX54: 86.98666667 | BY54: 87.41333333 | BZ54: 87.84 | CA54: 88.26666667 | CB54: 88.69333333 | CC54: 89.12 | CD54: 89.54666667 | CE54: 89.97333333 | CF54: 90.4 | CG54: 92.968 | CH54: 95.536 | CI54: 98.104 | CJ54: 100.672 | CK54: 103.24 | CU54: 109.67 | CX54: 109.67
C55: 4800 | D55: 1.563333333 | E55: 3.647777778 | F55: 4.69 | G55: 4.69 | H55: 5.938571429 | I55: 7.187142857 | J55: 8.435714286 | K55: 9.684285714 | L55: 10.93285714 | M55: 12.18142857 | N55: 13.43 | O55: 14.47 | P55: 15.51 | Q55: 16.55 | R55: 18.105 | S55: 19.66 | T55: 20.912 | U55: 22.164 | V55: 23.416 | W55: 24.668 | X55: 25.92 | Y55: 27.168 | Z55: 28.416 | AA55: 29.664 | AB55: 30.912 | AC55: 32.16 | AD55: 33.19666667 | AE55: 34.23333333 | AF55: 35.27 | AG55: 36.83 | AH55: 38.39 | AI55: 39.639 | AJ55: 40.888 | AK55: 42.137 | AL55: 43.386 | AM55: 44.635 | AN55: 45.884 | AO55: 47.133 | AP55: 48.382 | AQ55: 49.631 | AR55: 50.88 | AS55: 52.732 | AT55: 54.584 | AU55: 56.436 | AV55: 58.288 | AW55: 60.14 | AX55: 60.788 | AY55: 61.436 | AZ55: 62.084 | BA55: 62.732 | BB55: 63.38 | BC55: 64.629 | BD55: 65.878 | BE55: 67.127 | BF55: 68.376 | BG55: 69.625 | BH55: 70.874 | BI55: 72.123 | BJ55: 73.372 | BK55: 74.621 | BL55: 75.87 | BM55: 77.116 | BN55: 78.362 | BO55: 79.608 | BP55: 80.854 | BQ55: 82.1 | BR55: 82.516 | BS55: 82.932 | BT55: 83.348 | BU55: 83.764 | BV55: 84.18 | BW55: 84.596 | BX55: 85.012 | BY55: 85.428 | BZ55: 85.844 | CA55: 86.26 | CB55: 86.676 | CC55: 87.092 | CD55: 87.508 | CE55: 87.924 | CF55: 88.34 | CG55: 90.838 | CH55: 93.336 | CI55: 95.834 | CJ55: 98.332 | CK55: 100.83 | CU55: 107.06 | CX55: 107.06
C56: 5600 | D56: 1.46 | E56: 3.406666667 | F56: 4.38 | G56: 4.38 | H56: 5.605714286 | I56: 6.831428571 | J56: 8.057142857 | K56: 9.282857143 | L56: 10.50857143 | M56: 11.73428571 | N56: 12.96 | O56: 13.98333333 | P56: 15.00666667 | Q56: 16.03 | R56: 17.565 | S56: 19.1 | T56: 20.324 | U56: 21.548 | V56: 22.772 | W56: 23.996 | X56: 25.22 | Y56: 26.378 | Z56: 27.536 | AA56: 28.694 | AB56: 29.852 | AC56: 31.01 | AD56: 32.12 | AE56: 33.23 | AF56: 34.34 | AG56: 35.91 | AH56: 37.48 | AI56: 38.708 | AJ56: 39.936 | AK56: 41.164 | AL56: 42.392 | AM56: 43.62 | AN56: 44.848 | AO56: 46.076 | AP56: 47.304 | AQ56: 48.532 | AR56: 49.76 | AS56: 51.78 | AT56: 53.8 | AU56: 55.82 | AV56: 57.84 | AW56: 59.86 | AX56: 60.292 | AY56: 60.724 | AZ56: 61.156 | BA56: 61.588 | BB56: 62.02 | BC56: 63.246 | BD56: 64.472 | BE56: 65.698 | BF56: 66.924 | BG56: 68.15 | BH56: 69.376 | BI56: 70.602 | BJ56: 71.828 | BK56: 73.054 | BL56: 74.28 | BM56: 75.502 | BN56: 76.724 | BO56: 77.946 | BP56: 79.168 | BQ56: 80.39 | BR56: 80.79933333 | BS56: 81.20866667 | BT56: 81.618 | BU56: 82.02733333 | BV56: 82.43666667 | BW56: 82.846 | BX56: 83.25533333 | BY56: 83.66466667 | BZ56: 84.074 | CA56: 84.48333333 | CB56: 84.89266667 | CC56: 85.302 | CD56: 85.71133333 | CE56: 86.12066667 | CF56: 86.53 | CG56: 88.982 | CH56: 91.434 | CI56: 93.886 | CJ56: 96.338 | CK56: 98.79 | CU56: 104.93 | CX56: 104.93
C57: 6000 | D57: 0.54 | E57: 1.26 | F57: 1.62 | G57: 1.62 | H57: 2.955714286 | I57: 4.291428571 | J57: 5.627142857 | K57: 6.962857143 | L57: 8.298571429 | M57: 9.634285714 | N57: 10.97 | O57: 12.08666667 | P57: 13.20333333 | Q57: 14.32 | R57: 15.985 | S57: 17.65 | T57: 18.986 | U57: 20.322 | V57: 21.658 | W57: 22.994 | X57: 24.33 | Y57: 25.666 | Z57: 27.002 | AA57: 28.338 | AB57: 29.674 | AC57: 31.01 | AD57: 32.12666667 | AE57: 33.24333333 | AF57: 34.36 | AG57: 36.025 | AH57: 37.69 | AI57: 39.026 | AJ57: 40.362 | AK57: 41.698 | AL57: 43.034 | AM57: 44.37 | AN57: 45.706 | AO57: 47.042 | AP57: 48.378 | AQ57: 49.714 | AR57: 51.05 | AS57: 52.592 | AT57: 54.134 | AU57: 55.676 | AV57: 57.218 | AW57: 58.76 | AX57: 59.884 | AY57: 61.008 | AZ57: 62.132 | BA57: 63.256 | BB57: 64.38 | BC57: 65.716 | BD57: 67.052 | BE57: 68.388 | BF57: 69.724 | BG57: 71.06 | BH57: 72.396 | BI57: 73.732 | BJ57: 75.068 | BK57: 76.404 | BL57: 77.74 | BM57: 79.076 | BN57: 80.412 | BO57: 81.748 | BP57: 83.084 | BQ57: 84.42 | BR57: 84.86533333 | BS57: 85.31066667 | BT57: 85.756 | BU57: 86.20133333 | BV57: 86.64666667 | BW57: 87.092 | BX57: 87.53733333 | BY57: 87.98266667 | BZ57: 88.428 | CA57: 88.87333333 | CB57: 89.31866667 | CC57: 89.764 | CD57: 90.20933333 | CE57: 90.65466667 | CF57: 91.1 | CG57: 93.772 | CH57: 96.444 | CI57: 99.116 | CJ57: 101.788 | CK57: 104.46 | CU57: 111.14 | CX57: 111.14
C58: 6750 | D58: 1.156666667 | E58: 2.698888889 | F58: 3.47 | G58: 3.47 | H58: 4.675714286 | I58: 5.881428571 | J58: 7.087142857 | K58: 8.292857143 | L58: 9.498571429 | M58: 10.70428571 | N58: 11.91 | O58: 12.91 | P58: 13.91 | Q58: 14.91 | R58: 16.41 | S58: 17.91 | T58: 19.114 | U58: 20.318 | V58: 21.522 | W58: 22.726 | X58: 23.93 | Y58: 25.13 | Z58: 26.33 | AA58: 27.53 | AB58: 28.73 | AC58: 29.93 | AD58: 30.93 | AE58: 31.93 | AF58: 32.93 | AG58: 34.44 | AH58: 35.95 | AI58: 37.153 | AJ58: 38.356 | AK58: 39.559 | AL58: 40.762 | AM58: 41.965 | AN58: 43.168 | AO58: 44.371 | AP58: 45.574 | AQ58: 46.777 | AR58: 47.98 | AS58: 49.048 | AT58: 50.116 | AU58: 51.184 | AV58: 52.252 | AW58: 53.32 | AX58: 54.656 | AY58: 55.992 | AZ58: 57.328 | BA58: 58.664 | BB58: 60 | BC58: 61.202 | BD58: 62.404 | BE58: 63.606 | BF58: 64.808 | BG58: 66.01 | BH58: 67.212 | BI58: 68.414 | BJ58: 69.616 | BK58: 70.818 | BL58: 72.02 | BM58: 73.226 | BN58: 74.432 | BO58: 75.638 | BP58: 76.844 | BQ58: 78.05 | BR58: 78.45 | BS58: 78.85 | BT58: 79.25 | BU58: 79.65 | BV58: 80.05 | BW58: 80.45 | BX58: 80.85 | BY58: 81.25 | BZ58: 81.65 | CA58: 82.05 | CB58: 82.45 | CC58: 82.85 | CD58: 83.25 | CE58: 83.65 | CF58: 84.05 | CG58: 86.454 | CH58: 88.858 | CI58: 91.262 | CJ58: 93.666 | CK58: 96.07 | CU58: 102.1 | CX58: 102.1
C59: 7400 | D59: 1.476666667 | E59: 3.445555556 | F59: 4.43 | G59: 4.43 | H59: 5.581428571 | I59: 6.732857143 | J59: 7.884285714 | K59: 9.035714286 | L59: 10.18714286 | M59: 11.33857143 | N59: 12.49 | O59: 13.45333333 | P59: 14.41666667 | Q59: 15.38 | R59: 16.805 | S59: 18.23 | T59: 19.384 | U59: 20.538 | V59: 21.692 | W59: 22.846 | X59: 24 | Y59: 25.154 | Z59: 26.308 | AA59: 27.462 | AB59: 28.616 | AC59: 29.77 | AD59: 30.73 | AE59: 31.69 | AF59: 32.65 | AG59: 34.09 | AH59: 35.53 | AI59: 36.681 | AJ59: 37.832 | AK59: 38.983 | AL59: 40.134 | AM59: 41.285 | AN59: 42.436 | AO59: 43.587 | AP59: 44.738 | AQ59: 45.889 | AR59: 47.04 | AS59: 49.056 | AT59: 51.072 | AU59: 53.088 | AV59: 55.104 | AW59: 57.12 | AX59: 57.41 | AY59: 57.7 | AZ59: 57.99 | BA59: 58.28 | BB59: 58.57 | BC59: 59.721 | BD59: 60.872 | BE59: 62.023 | BF59: 63.174 | BG59: 64.325 | BH59: 65.476 | BI59: 66.627 | BJ59: 67.778 | BK59: 68.929 | BL59: 70.08 | BM59: 71.234 | BN59: 72.388 | BO59: 73.542 | BP59: 74.696 | BQ59: 75.85 | BR59: 76.234 | BS59: 76.618 | BT59: 77.002 | BU59: 77.386 | BV59: 77.77 | BW59: 78.154 | BX59: 78.538 | BY59: 78.922 | BZ59: 79.306 | CA59: 79.69 | CB59: 80.074 | CC59: 80.458 | CD59: 80.842 | CE59: 81.226 | CF59: 81.61 | CG59: 83.912 | CH59: 86.214 | CI59: 88.516 | CJ59: 90.818 | CK59: 93.12 | CU59: 98.88 | CX59: 98.88

Sheet KFMIOP CALCULATOR (12x16|11x16)
B2: KFMIRL MAP (INSERT WINOLS DATA HERE)
C3: RPM LOAD | D3: 0 | E3: 10 | F3: 15 | G3: 20 | H3: 30 | I3: 40 | J3: 50 | K3: 60 | L3: 70 | M3: 80 | N3: 90 | O3: 99
C4: 480 | D4: 0 | E4: 0 | F4: 0 | G4: 0 | H4: 0 | I4: 0 | J4: 0 | K4: 0 | L4: 0 | M4: 0 | N4: 0 | O4: 0
C5: 720 | D5: 0 | E5: 0 | F5: 0 | G5: 0 | H5: 0 | I5: 0 | J5: 0 | K5: 0 | L5: 0 | M5: 0 | N5: 0 | O5: 0
C6: 1000 | D6: 0 | E6: 0 | F6: 0 | G6: 0 | H6: 0 | I6: 0 | J6: 0 | K6: 0 | L6: 0 | M6: 0 | N6: 0 | O6: 0
C7: 1240 | D7: 0 | E7: 0 | F7: 0 | G7: 0 | H7: 0 | I7: 0 | J7: 0 | K7: 0 | L7: 0 | M7: 0 | N7: 0 | O7: 0
C8: 1520 | D8: 0 | E8: 0 | F8: 0 | G8: 0 | H8: 0 | I8: 0 | J8: 0 | K8: 0 | L8: 0 | M8: 0 | N8: 0 | O8: 0
C9: 1760 | D9: 0 | E9: 0 | F9: 0 | G9: 0 | H9: 0 | I9: 0 | J9: 0 | K9: 0 | L9: 0 | M9: 0 | N9: 0 | O9: 0
C10: 2000 | D10: 0 | E10: 0 | F10: 0 | G10: 0 | H10: 0 | I10: 0 | J10: 0 | K10: 0 | L10: 0 | M10: 0 | N10: 0 | O10: 0
C11: 2520 | D11: 0 | E11: 0 | F11: 0 | G11: 0 | H11: 0 | I11: 0 | J11: 0 | K11: 0 | L11: 0 | M11: 0 | N11: 0 | O11: 0
C12: 3000 | D12: 0 | E12: 0 | F12: 0 | G12: 0 | H12: 0 | I12: 0 | J12: 0 | K12: 0 | L12: 0 | M12: 0 | N12: 0 | O12: 0
C13: 3520 | D13: 0 | E13: 0 | F13: 0 | G13: 0 | H13: 0 | I13: 0 | J13: 0 | K13: 0 | L13: 0 | M13: 0 | N13: 0 | O13: 0
C14: 4000 | D14: 0 | E14: 0 | F14: 0 | G14: 0 | H14: 0 | I14: 0 | J14: 0 | K14: 0 | L14: 0 | M14: 0 | N14: 0 | O14: 0
C15: 4520 | D15: 0 | E15: 0 | F15: 0 | G15: 0 | H15: 0 | I15: 0 | J15: 0 | K15: 0 | L15: 0 | M15: 0 | N15: 0 | O15: 0
C16: 5000 | D16: 0 | E16: 0 | F16: 0 | G16: 0 | H16: 0 | I16: 0 | J16: 0 | K16: 0 | L16: 0 | M16: 0 | N16: 0 | O16: 0
C17: 5720 | D17: 0 | E17: 0 | F17: 0 | G17: 0 | H17: 0 | I17: 0 | J17: 0 | K17: 0 | L17: 0 | M17: 0 | N17: 0 | O17: 0
C18: 6000 | D18: 0 | E18: 0 | F18: 0 | G18: 0 | H18: 0 | I18: 0 | J18: 0 | K18: 0 | L18: 0 | M18: 0 | N18: 0 | O18: 0
C19: 6720 | D19: 0 | E19: 0 | F19: 0 | G19: 0 | H19: 0 | I19: 0 | J19: 0 | K19: 0 | L19: 0 | M19: 0 | N19: 0 | O19: 0
B22: KFMIOP MAP
C23: RPM LOAD | D23: 0 | E23: 0 | F23: 0 | G23: 0 | H23: 0 | I23: 0 | J23: 0 | K23: 0 | L23: 0 | M23: 0 | N23: 0 | R23: KFMIOP CALCULATOR 2 by MASTERJ v1.3
C24: 1000 | D24: =MATCH(D$23, $D44:$CY44, 1) -> 100 | E24: =MATCH(E$23, $D44:$CY44, 1) -> 100 | F24: 100 | G24: 100 | H24: 100 | I24: 100 | J24: 100 | K24: 100 | L24: 100 | M24: 100 | N24: 100
C25: 1250 | D25: =MATCH(D$23, $D45:$CY45, 1) -> 100 | E25: 100 | F25: 100 | G25: 100 | H25: 100 | I25: 100 | J25: 100 | K25: 100 | L25: 100 | M25: 100 | N25: 100
C26: 1500 | D26: 100 | E26: 100 | F26: 100 | G26: 100 | H26: 100 | I26: 100 | J26: 100 | K26: 100 | L26: 100 | M26: 100 | N26: 100
C27: 1750 | D27: 100 | E27: 100 | F27: 100 | G27: 100 | H27: 100 | I27: 100 | J27: 100 | K27: 100 | L27: 100 | M27: 100 | N27: 100
C28: 2000 | D28: 100 | E28: 100 | F28: 100 | G28: 100 | H28: 100 | I28: 100 | J28: 100 | K28: 100 | L28: 100 | M28: 100 | N28: 100
C29: 2250 | D29: 100 | E29: 100 | F29: 100 | G29: 100 | H29: 100 | I29: 100 | J29: 100 | K29: 100 | L29: 100 | M29: 100 | N29: 100
C30: 2500 | D30: 100 | E30: 100 | F30: 100 | G30: 100 | H30: 100 | I30: 100 | J30: 100 | K30: 100 | L30: 100 | M30: 100 | N30: 100 | R30: marius.guscius@vwklubas.lt
C31: 2750 | D31: 100 | E31: 100 | F31: 100 | G31: 100 | H31: 100 | I31: 100 | J31: 100 | K31: 100 | L31: 100 | M31: 100 | N31: 100
C32: 3000 | D32: 100 | E32: 100 | F32: 100 | G32: 100 | H32: 100 | I32: 100 | J32: 100 | K32: 100 | L32: 100 | M32: 100 | N32: 100
C33: 3500 | D33: 100 | E33: 100 | F33: 100 | G33: 100 | H33: 100 | I33: 100 | J33: 100 | K33: 100 | L33: 100 | M33: 100 | N33: 100 | S33: <=== | T33: EDITABLE FIELDS!
C34: 4000 | D34: 100 | E34: 100 | F34: 100 | G34: 100 | H34: 100 | I34: 100 | J34: 100 | K34: 100 | L34: 100 | M34: 100 | N34: 100
C35: 4500 | D35: 100 | E35: 100 | F35: 100 | G35: 100 | H35: 100 | I35: 100 | J35: 100 | K35: 100 | L35: 100 | M35: 100 | N35: 100
C36: 5000 | D36: 100 | E36: 100 | F36: 100 | G36: 100 | H36: 100 | I36: 100 | J36: 100 | K36: 100 | L36: 100 | M36: 100 | N36: 100
C37: 5500 | D37: 100 | E37: 100 | F37: 100 | G37: 100 | H37: 100 | I37: 100 | J37: 100 | K37: 100 | L37: 100 | M37: 100 | N37: 100
C38: 6000 | D38: 100 | E38: 100 | F38: 100 | G38: 100 | H38: 100 | I38: 100 | J38: 100 | K38: 100 | L38: 100 | M38: 100 | N38: 100
C39: 6500 | D39: 100 | E39: 100 | F39: 100 | G39: 100 | H39: 100 | I39: 100 | J39: 100 | K39: 100 | L39: 100 | M39: 100 | N39: 100
B42: WEIGHT FACTORS (HIDDEN)
C43: RPM LOAD | D43: 0 | E43: 1 | F43: 2 | G43: 3 | H43: 4 | I43: 5 | J43: 6 | K43: 7 | L43: 8 | M43: 9 | N43: 10 | O43: 11 | P43: 12 | Q43: 13 | R43: 14 | S43: 15 | T43: 16 | U43: 17 | V43: 18 | W43: 19 | X43: 20 | Y43: 21 | Z43: 22 | AA43: 23 | AB43: 24 | AC43: 25 | AD43: 26 | AE43: 27 | AF43: 28 | AG43: 29 | AH43: 30 | AI43: 31 | AJ43: 32 | AK43: 33 | AL43: 34 | AM43: 35 | AN43: 36 | AO43: 37 | AP43: 38 | AQ43: 39 | AR43: 40 | AS43: 41 | AT43: 42 | AU43: 43 | AV43: 44 | AW43: 45 | AX43: 46 | AY43: 47 | AZ43: 48 | BA43: 49 | BB43: 50 | BC43: 51 | BD43: 52 | BE43: 53 | BF43: 54 | BG43: 55 | BH43: 56 | BI43: 57 | BJ43: 58 | BK43: 59 | BL43: 60 | BM43: 61 | BN43: 62 | BO43: 63 | BP43: 64 | BQ43: 65 | BR43: 66 | BS43: 67 | BT43: 68 | BU43: 69 | BV43: 70 | BW43: 71 | BX43: 72 | BY43: 73 | BZ43: 74 | CA43: 75 | CB43: 76 | CC43: 77 | CD43: 78 | CE43: 79 | CF43: 80 | CG43: 81 | CH43: 82 | CI43: 83 | CJ43: 84 | CK43: 85 | CL43: 86 | CM43: 87 | CN43: 88 | CO43: 89 | CP43: 90 | CQ43: 91 | CR43: 92 | CS43: 93 | CT43: 94 | CU43: 95 | CV43: 96 | CW43: 97 | CX43: 98 | CY43: 99
C44: =C24 -> 1000 | D44: 0 | E44: =$D44+($N44-$D44)/10*1 -> 0 | F44: =$D44+($N44-$D44)/10*2 -> 0 | G44: =$D44+($N44-$D44)/10*3 -> 0 | H44: =$D44+($N44-$D44)/10*4 -> 0 | I44: =$D44+($N44-$D44)/10*5 -> 0 | J44: =$D44+($N44-$D44)/10*6 -> 0 | K44: =$D44+($N44-$D44)/10*7 -> 0 | L44: =$D44+($N44-$D44)/10*8 -> 0 | M44: =$D44+($N44-$D44)/10*9 -> 0 | N44: 0 | O44: =$N44+($S44-$N44)/5*1 -> 0 | P44: =$N44+($S44-$N44)/5*2 -> 0 | Q44: =$N44+($S44-$N44)/5*3 -> 0 | R44: =$N44+($S44-$N44)/5*4 -> 0 | S44: 0 | T44: =$S44+($X44-$S44)/5*1 -> 0 | U44: =$S44+($X44-$S44)/5*2 -> 0 | V44: =$S44+($X44-$S44)/5*3 -> 0 | W44: =$S44+($X44-$S44)/5*4 -> 0 | X44: 0 | Y44: =$X44+($AH44-$X44)/10*1 -> 0 | Z44: =$X44+($AH44-$X44)/10*2 -> 0 | AA44: =$X44+($AH44-$X44)/10*3 -> 0 | AB44: =$X44+($AH44-$X44)/10*4 -> 0 | AC44: =$X44+($AH44-$X44)/10*5 -> 0 | AD44: =$X44+($AH44-$X44)/10*6 -> 0 | AE44: =$X44+($AH44-$X44)/10*7 -> 0 | AF44: =$X44+($AH44-$X44)/10*8 -> 0 | AG44: =$X44+($AH44-$X44)/10*9 -> 0 | AH44: 0 | AI44: =$AH44+($AR44-$AH44)/10*1 -> 0 | AJ44: =$AH44+($AR44-$AH44)/10*2 -> 0 | AK44: =$AH44+($AR44-$AH44)/10*3 -> 0 | AL44: =$AH44+($AR44-$AH44)/10*4 -> 0 | AM44: =$AH44+($AR44-$AH44)/10*5 -> 0 | AN44: =$AH44+($AR44-$AH44)/10*6 -> 0 | AO44: =$AH44+($AR44-$AH44)/10*7 -> 0 | AP44: =$AH44+($AR44-$AH44)/10*8 -> 0 | AQ44: =$AH44+($AR44-$AH44)/10*9 -> 0 | AR44: 0 | AS44: =$AR44+($BB44-$AR44)/10*1 -> 0 | AT44: =$AR44+($BB44-$AR44)/10*2 -> 0 | AU44: =$AR44+($BB44-$AR44)/10*3 -> 0 | AV44: =$AR44+($BB44-$AR44)/10*4 -> 0 | AW44: =$AR44+($BB44-$AR44)/10*5 -> 0 | AX44: =$AR44+($BB44-$AR44)/10*6 -> 0 | AY44: =$AR44+($BB44-$AR44)/10*7 -> 0 | AZ44: =$AR44+($BB44-$AR44)/10*8 -> 0 | BA44: =$AR44+($BB44-$AR44)/10*9 -> 0 | BB44: 0 | BC44: =$BB44+($BL44-$BB44)/10*1 -> 0 | BD44: =$BB44+($BL44-$BB44)/10*2 -> 0 | BE44: =$BB44+($BL44-$BB44)/10*3 -> 0 | BF44: =$BB44+($BL44-$BB44)/10*4 -> 0 | BG44: =$BB44+($BL44-$BB44)/10*5 -> 0 | BH44: =$BB44+($BL44-$BB44)/10*6 -> 0 | BI44: =$BB44+($BL44-$BB44)/10*7 -> 0 | BJ44: =$BB44+($BL44-$BB44)/10*8 -> 0 | BK44: =$BB44+($BL44-$BB44)/10*9 -> 0 | BL44: 0 | BM44: =$BL44+($BV44-$BL44)/10*1 -> 0 | BN44: =$BL44+($BV44-$BL44)/10*2 -> 0 | BO44: =$BL44+($BV44-$BL44)/10*3 -> 0 | BP44: =$BL44+($BV44-$BL44)/10*4 -> 0 | BQ44: =$BL44+($BV44-$BL44)/10*5 -> 0 | BR44: =$BL44+($BV44-$BL44)/10*6 -> 0 | BS44: =$BL44+($BV44-$BL44)/10*7 -> 0 | BT44: =$BL44+($BV44-$BL44)/10*8 -> 0 | BU44: =$BL44+($BV44-$BL44)/10*9 -> 0 | BV44: 0 | BW44: =$BV44+($CF44-$BV44)/10*1 -> 0 | BX44: =$BV44+($CF44-$BV44)/10*2 -> 0 | BY44: =$BV44+($CF44-$BV44)/10*3 -> 0 | BZ44: =$BV44+($CF44-$BV44)/10*4 -> 0 | CA44: =$BV44+($CF44-$BV44)/10*5 -> 0 | CB44: =$BV44+($CF44-$BV44)/10*6 -> 0 | CC44: =$BV44+($CF44-$BV44)/10*7 -> 0 | CD44: =$BV44+($CF44-$BV44)/10*8 -> 0 | CE44: =$BV44+($CF44-$BV44)/10*9 -> 0 | CF44: 0 | CG44: =$CF44+($CP44-$CF44)/10*1 -> 0 | CH44: =$CF44+($CP44-$CF44)/10*2 -> 0 | CI44: =$CF44+($CP44-$CF44)/10*3 -> 0 | CJ44: =$CF44+($CP44-$CF44)/10*4 -> 0 | CK44: =$CF44+($CP44-$CF44)/10*5 -> 0 | CL44: =$CF44+($CP44-$CF44)/10*6 -> 0 | CM44: =$CF44+($CP44-$CF44)/10*7 -> 0 | CN44: =$CF44+($CP44-$CF44)/10*8 -> 0 | CO44: =$CF44+($CP44-$CF44)/10*9 -> 0 | CP44: 0 | CQ44: =$CP44+($CY44-$CP44)/9*1 -> 0 | CR44: =$CP44+($CY44-$CP44)/9*2 -> 0 | CS44: =$CP44+($CY44-$CP44)/9*3 -> 0 | CT44: =$CP44+($CY44-$CP44)/9*4 -> 0 | CU44: =$CP44+($CY44-$CP44)/9*5 -> 0 | CV44: =$CP44+($CY44-$CP44)/9*6 -> 0 | CW44: =$CP44+($CY44-$CP44)/9*7 -> 0 | CX44: =$CP44+($CY44-$CP44)/9*8 -> 0 | CY44: 0
C45: =C25 -> 1250 | D45: 0 | E45: 0 | F45: 0 | G45: 0 | H45: 0 | I45: 0 | J45: 0 | K45: 0 | L45: 0 | M45: 0 | N45: 0 | O45: 0 | P45: 0 | Q45: 0 | R45: 0 | S45: 0 | T45: 0 | U45: 0 | V45: 0 | W45: 0 | X45: 0 | Y45: 0 | Z45: 0 | AA45: 0 | AB45: 0 | AC45: 0 | AD45: 0 | AE45: 0 | AF45: 0 | AG45: 0 | AH45: 0 | AI45: 0 | AJ45: 0 | AK45: 0 | AL45: 0 | AM45: 0 | AN45: 0 | AO45: 0 | AP45: 0 | AQ45: 0 | AR45: 0 | AS45: 0 | AT45: 0 | AU45: 0 | AV45: 0 | AW45: 0 | AX45: 0 | AY45: 0 | AZ45: 0 | BA45: 0 | BB45: 0 | BC45: 0 | BD45: 0 | BE45: 0 | BF45: 0 | BG45: 0 | BH45: 0 | BI45: 0 | BJ45: 0 | BK45: 0 | BL45: 0 | BM45: 0 | BN45: 0 | BO45: 0 | BP45: 0 | BQ45: 0 | BR45: 0 | BS45: 0 | BT45: 0 | BU45: 0 | BV45: 0 | BW45: 0 | BX45: 0 | BY45: 0 | BZ45: 0 | CA45: 0 | CB45: 0 | CC45: 0 | CD45: 0 | CE45: 0 | CF45: 0 | CG45: 0 | CH45: 0 | CI45: 0 | CJ45: 0 | CK45: 0 | CL45: 0 | CM45: 0 | CN45: 0 | CO45: 0 | CP45: 0 | CQ45: 0 | CR45: 0 | CS45: 0 | CT45: 0 | CU45: 0 | CV45: 0 | CW45: 0 | CX45: 0 | CY45: 0
C46: 1500 | D46: 0 | E46: 0 | F46: 0 | G46: 0 | H46: 0 | I46: 0 | J46: 0 | K46: 0 | L46: 0 | M46: 0 | N46: 0 | O46: 0 | P46: 0 | Q46: 0 | R46: 0 | S46: 0 | T46: 0 | U46: 0 | V46: 0 | W46: 0 | X46: 0 | Y46: 0 | Z46: 0 | AA46: 0 | AB46: 0 | AC46: 0 | AD46: 0 | AE46: 0 | AF46: 0 | AG46: 0 | AH46: 0 | AI46: 0 | AJ46: 0 | AK46: 0 | AL46: 0 | AM46: 0 | AN46: 0 | AO46: 0 | AP46: 0 | AQ46: 0 | AR46: 0 | AS46: 0 | AT46: 0 | AU46: 0 | AV46: 0 | AW46: 0 | AX46: 0 | AY46: 0 | AZ46: 0 | BA46: 0 | BB46: 0 | BC46: 0 | BD46: 0 | BE46: 0 | BF46: 0 | BG46: 0 | BH46: 0 | BI46: 0 | BJ46: 0 | BK46: 0 | BL46: 0 | BM46: 0 | BN46: 0 | BO46: 0 | BP46: 0 | BQ46: 0 | BR46: 0 | BS46: 0 | BT46: 0 | BU46: 0 | BV46: 0 | BW46: 0 | BX46: 0 | BY46: 0 | BZ46: 0 | CA46: 0 | CB46: 0 | CC46: 0 | CD46: 0 | CE46: 0 | CF46: 0 | CG46: 0 | CH46: 0 | CI46: 0 | CJ46: 0 | CK46: 0 | CL46: 0 | CM46: 0 | CN46: 0 | CO46: 0 | CP46: 0 | CQ46: 0 | CR46: 0 | CS46: 0 | CT46: 0 | CU46: 0 | CV46: 0 | CW46: 0 | CX46: 0 | CY46: 0
C47: 1750 | D47: 0 | E47: 0 | F47: 0 | G47: 0 | H47: 0 | I47: 0 | J47: 0 | K47: 0 | L47: 0 | M47: 0 | N47: 0 | O47: 0 | P47: 0 | Q47: 0 | R47: 0 | S47: 0 | T47: 0 | U47: 0 | V47: 0 | W47: 0 | X47: 0 | Y47: 0 | Z47: 0 | AA47: 0 | AB47: 0 | AC47: 0 | AD47: 0 | AE47: 0 | AF47: 0 | AG47: 0 | AH47: 0 | AI47: 0 | AJ47: 0 | AK47: 0 | AL47: 0 | AM47: 0 | AN47: 0 | AO47: 0 | AP47: 0 | AQ47: 0 | AR47: 0 | AS47: 0 | AT47: 0 | AU47: 0 | AV47: 0 | AW47: 0 | AX47: 0 | AY47: 0 | AZ47: 0 | BA47: 0 | BB47: 0 | BC47: 0 | BD47: 0 | BE47: 0 | BF47: 0 | BG47: 0 | BH47: 0 | BI47: 0 | BJ47: 0 | BK47: 0 | BL47: 0 | BM47: 0 | BN47: 0 | BO47: 0 | BP47: 0 | BQ47: 0 | BR47: 0 | BS47: 0 | BT47: 0 | BU47: 0 | BV47: 0 | BW47: 0 | BX47: 0 | BY47: 0 | BZ47: 0 | CA47: 0 | CB47: 0 | CC47: 0 | CD47: 0 | CE47: 0 | CF47: 0 | CG47: 0 | CH47: 0 | CI47: 0 | CJ47: 0 | CK47: 0 | CL47: 0 | CM47: 0 | CN47: 0 | CO47: 0 | CP47: 0 | CQ47: 0 | CR47: 0 | CS47: 0 | CT47: 0 | CU47: 0 | CV47: 0 | CW47: 0 | CX47: 0 | CY47: 0
C48: 2000 | D48: 0 | E48: 0 | F48: 0 | G48: 0 | H48: 0 | I48: 0 | J48: 0 | K48: 0 | L48: 0 | M48: 0 | N48: 0 | O48: 0 | P48: 0 | Q48: 0 | R48: 0 | S48: 0 | T48: 0 | U48: 0 | V48: 0 | W48: 0 | X48: 0 | Y48: 0 | Z48: 0 | AA48: 0 | AB48: 0 | AC48: 0 | AD48: 0 | AE48: 0 | AF48: 0 | AG48: 0 | AH48: 0 | AI48: 0 | AJ48: 0 | AK48: 0 | AL48: 0 | AM48: 0 | AN48: 0 | AO48: 0 | AP48: 0 | AQ48: 0 | AR48: 0 | AS48: 0 | AT48: 0 | AU48: 0 | AV48: 0 | AW48: 0 | AX48: 0 | AY48: 0 | AZ48: 0 | BA48: 0 | BB48: 0 | BC48: 0 | BD48: 0 | BE48: 0 | BF48: 0 | BG48: 0 | BH48: 0 | BI48: 0 | BJ48: 0 | BK48: 0 | BL48: 0 | BM48: 0 | BN48: 0 | BO48: 0 | BP48: 0 | BQ48: 0 | BR48: 0 | BS48: 0 | BT48: 0 | BU48: 0 | BV48: 0 | BW48: 0 | BX48: 0 | BY48: 0 | BZ48: 0 | CA48: 0 | CB48: 0 | CC48: 0 | CD48: 0 | CE48: 0 | CF48: 0 | CG48: 0 | CH48: 0 | CI48: 0 | CJ48: 0 | CK48: 0 | CL48: 0 | CM48: 0 | CN48: 0 | CO48: 0 | CP48: 0 | CQ48: 0 | CR48: 0 | CS48: 0 | CT48: 0 | CU48: 0 | CV48: 0 | CW48: 0 | CX48: 0 | CY48: 0
C49: 2250 | D49: 0 | E49: 0 | F49: 0 | G49: 0 | H49: 0 | I49: 0 | J49: 0 | K49: 0 | L49: 0 | M49: 0 | N49: 0 | O49: 0 | P49: 0 | Q49: 0 | R49: 0 | S49: 0 | T49: 0 | U49: 0 | V49: 0 | W49: 0 | X49: 0 | Y49: 0 | Z49: 0 | AA49: 0 | AB49: 0 | AC49: 0 | AD49: 0 | AE49: 0 | AF49: 0 | AG49: 0 | AH49: 0 | AI49: 0 | AJ49: 0 | AK49: 0 | AL49: 0 | AM49: 0 | AN49: 0 | AO49: 0 | AP49: 0 | AQ49: 0 | AR49: 0 | AS49: 0 | AT49: 0 | AU49: 0 | AV49: 0 | AW49: 0 | AX49: 0 | AY49: 0 | AZ49: 0 | BA49: 0 | BB49: 0 | BC49: 0 | BD49: 0 | BE49: 0 | BF49: 0 | BG49: 0 | BH49: 0 | BI49: 0 | BJ49: 0 | BK49: 0 | BL49: 0 | BM49: 0 | BN49: 0 | BO49: 0 | BP49: 0 | BQ49: 0 | BR49: 0 | BS49: 0 | BT49: 0 | BU49: 0 | BV49: 0 | BW49: 0 | BX49: 0 | BY49: 0 | BZ49: 0 | CA49: 0 | CB49: 0 | CC49: 0 | CD49: 0 | CE49: 0 | CF49: 0 | CG49: 0 | CH49: 0 | CI49: 0 | CJ49: 0 | CK49: 0 | CL49: 0 | CM49: 0 | CN49: 0 | CO49: 0 | CP49: 0 | CQ49: 0 | CR49: 0 | CS49: 0 | CT49: 0 | CU49: 0 | CV49: 0 | CW49: 0 | CX49: 0 | CY49: 0
C50: 2500 | D50: 0 | E50: 0 | F50: 0 | G50: 0 | H50: 0 | I50: 0 | J50: 0 | K50: 0 | L50: 0 | M50: 0 | N50: 0 | O50: 0 | P50: 0 | Q50: 0 | R50: 0 | S50: 0 | T50: 0 | U50: 0 | V50: 0 | W50: 0 | X50: 0 | Y50: 0 | Z50: 0 | AA50: 0 | AB50: 0 | AC50: 0 | AD50: 0 | AE50: 0 | AF50: 0 | AG50: 0 | AH50: 0 | AI50: 0 | AJ50: 0 | AK50: 0 | AL50: 0 | AM50: 0 | AN50: 0 | AO50: 0 | AP50: 0 | AQ50: 0 | AR50: 0 | AS50: 0 | AT50: 0 | AU50: 0 | AV50: 0 | AW50: 0 | AX50: 0 | AY50: 0 | AZ50: 0 | BA50: 0 | BB50: 0 | BC50: 0 | BD50: 0 | BE50: 0 | BF50: 0 | BG50: 0 | BH50: 0 | BI50: 0 | BJ50: 0 | BK50: 0 | BL50: 0 | BM50: 0 | BN50: 0 | BO50: 0 | BP50: 0 | BQ50: 0 | BR50: 0 | BS50: 0 | BT50: 0 | BU50: 0 | BV50: 0 | BW50: 0 | BX50: 0 | BY50: 0 | BZ50: 0 | CA50: 0 | CB50: 0 | CC50: 0 | CD50: 0 | CE50: 0 | CF50: 0 | CG50: 0 | CH50: 0 | CI50: 0 | CJ50: 0 | CK50: 0 | CL50: 0 | CM50: 0 | CN50: 0 | CO50: 0 | CP50: 0 | CQ50: 0 | CR50: 0 | CS50: 0 | CT50: 0 | CU50: 0 | CV50: 0 | CW50: 0 | CX50: 0 | CY50: 0
C51: 2750 | D51: 0 | E51: 0 | F51: 0 | G51: 0 | H51: 0 | I51: 0 | J51: 0 | K51: 0 | L51: 0 | M51: 0 | N51: 0 | O51: 0 | P51: 0 | Q51: 0 | R51: 0 | S51: 0 | T51: 0 | U51: 0 | V51: 0 | W51: 0 | X51: 0 | Y51: 0 | Z51: 0 | AA51: 0 | AB51: 0 | AC51: 0 | AD51: 0 | AE51: 0 | AF51: 0 | AG51: 0 | AH51: 0 | AI51: 0 | AJ51: 0 | AK51: 0 | AL51: 0 | AM51: 0 | AN51: 0 | AO51: 0 | AP51: 0 | AQ51: 0 | AR51: 0 | AS51: 0 | AT51: 0 | AU51: 0 | AV51: 0 | AW51: 0 | AX51: 0 | AY51: 0 | AZ51: 0 | BA51: 0 | BB51: 0 | BC51: 0 | BD51: 0 | BE51: 0 | BF51: 0 | BG51: 0 | BH51: 0 | BI51: 0 | BJ51: 0 | BK51: 0 | BL51: 0 | BM51: 0 | BN51: 0 | BO51: 0 | BP51: 0 | BQ51: 0 | BR51: 0 | BS51: 0 | BT51: 0 | BU51: 0 | BV51: 0 | BW51: 0 | BX51: 0 | BY51: 0 | BZ51: 0 | CA51: 0 | CB51: 0 | CC51: 0 | CD51: 0 | CE51: 0 | CF51: 0 | CG51: 0 | CH51: 0 | CI51: 0 | CJ51: 0 | CK51: 0 | CL51: 0 | CM51: 0 | CN51: 0 | CO51: 0 | CP51: 0 | CQ51: 0 | CR51: 0 | CS51: 0 | CT51: 0 | CU51: 0 | CV51: 0 | CW51: 0 | CX51: 0 | CY51: 0
C52: 3000 | D52: 0 | E52: 0 | F52: 0 | G52: 0 | H52: 0 | I52: 0 | J52: 0 | K52: 0 | L52: 0 | M52: 0 | N52: 0 | O52: 0 | P52: 0 | Q52: 0 | R52: 0 | S52: 0 | T52: 0 | U52: 0 | V52: 0 | W52: 0 | X52: 0 | Y52: 0 | Z52: 0 | AA52: 0 | AB52: 0 | AC52: 0 | AD52: 0 | AE52: 0 | AF52: 0 | AG52: 0 | AH52: 0 | AI52: 0 | AJ52: 0 | AK52: 0 | AL52: 0 | AM52: 0 | AN52: 0 | AO52: 0 | AP52: 0 | AQ52: 0 | AR52: 0 | AS52: 0 | AT52: 0 | AU52: 0 | AV52: 0 | AW52: 0 | AX52: 0 | AY52: 0 | AZ52: 0 | BA52: 0 | BB52: 0 | BC52: 0 | BD52: 0 | BE52: 0 | BF52: 0 | BG52: 0 | BH52: 0 | BI52: 0 | BJ52: 0 | BK52: 0 | BL52: 0 | BM52: 0 | BN52: 0 | BO52: 0 | BP52: 0 | BQ52: 0 | BR52: 0 | BS52: 0 | BT52: 0 | BU52: 0 | BV52: 0 | BW52: 0 | BX52: 0 | BY52: 0 | BZ52: 0 | CA52: 0 | CB52: 0 | CC52: 0 | CD52: 0 | CE52: 0 | CF52: 0 | CG52: 0 | CH52: 0 | CI52: 0 | CJ52: 0 | CK52: 0 | CL52: 0 | CM52: 0 | CN52: 0 | CO52: 0 | CP52: 0 | CQ52: 0 | CR52: 0 | CS52: 0 | CT52: 0 | CU52: 0 | CV52: 0 | CW52: 0 | CX52: 0 | CY52: 0
C53: 3500 | D53: 0 | E53: 0 | F53: 0 | G53: 0 | H53: 0 | I53: 0 | J53: 0 | K53: 0 | L53: 0 | M53: 0 | N53: 0 | O53: 0 | P53: 0 | Q53: 0 | R53: 0 | S53: 0 | T53: 0 | U53: 0 | V53: 0 | W53: 0 | X53: 0 | Y53: 0 | Z53: 0 | AA53: 0 | AB53: 0 | AC53: 0 | AD53: 0 | AE53: 0 | AF53: 0 | AG53: 0 | AH53: 0 | AI53: 0 | AJ53: 0 | AK53: 0 | AL53: 0 | AM53: 0 | AN53: 0 | AO53: 0 | AP53: 0 | AQ53: 0 | AR53: 0 | AS53: 0 | AT53: 0 | AU53: 0 | AV53: 0 | AW53: 0 | AX53: 0 | AY53: 0 | AZ53: 0 | BA53: 0 | BB53: 0 | BC53: 0 | BD53: 0 | BE53: 0 | BF53: 0 | BG53: 0 | BH53: 0 | BI53: 0 | BJ53: 0 | BK53: 0 | BL53: 0 | BM53: 0 | BN53: 0 | BO53: 0 | BP53: 0 | BQ53: 0 | BR53: 0 | BS53: 0 | BT53: 0 | BU53: 0 | BV53: 0 | BW53: 0 | BX53: 0 | BY53: 0 | BZ53: 0 | CA53: 0 | CB53: 0 | CC53: 0 | CD53: 0 | CE53: 0 | CF53: 0 | CG53: 0 | CH53: 0 | CI53: 0 | CJ53: 0 | CK53: 0 | CL53: 0 | CM53: 0 | CN53: 0 | CO53: 0 | CP53: 0 | CQ53: 0 | CR53: 0 | CS53: 0 | CT53: 0 | CU53: 0 | CV53: 0 | CW53: 0 | CX53: 0 | CY53: 0
C54: 4000 | D54: 0 | E54: 0 | F54: 0 | G54: 0 | H54: 0 | I54: 0 | J54: 0 | K54: 0 | L54: 0 | M54: 0 | N54: 0 | O54: 0 | P54: 0 | Q54: 0 | R54: 0 | S54: 0 | T54: 0 | U54: 0 | V54: 0 | W54: 0 | X54: 0 | Y54: 0 | Z54: 0 | AA54: 0 | AB54: 0 | AC54: 0 | AD54: 0 | AE54: 0 | AF54: 0 | AG54: 0 | AH54: 0 | AI54: 0 | AJ54: 0 | AK54: 0 | AL54: 0 | AM54: 0 | AN54: 0 | AO54: 0 | AP54: 0 | AQ54: 0 | AR54: 0 | AS54: 0 | AT54: 0 | AU54: 0 | AV54: 0 | AW54: 0 | AX54: 0 | AY54: 0 | AZ54: 0 | BA54: 0 | BB54: 0 | BC54: 0 | BD54: 0 | BE54: 0 | BF54: 0 | BG54: 0 | BH54: 0 | BI54: 0 | BJ54: 0 | BK54: 0 | BL54: 0 | BM54: 0 | BN54: 0 | BO54: 0 | BP54: 0 | BQ54: 0 | BR54: 0 | BS54: 0 | BT54: 0 | BU54: 0 | BV54: 0 | BW54: 0 | BX54: 0 | BY54: 0 | BZ54: 0 | CA54: 0 | CB54: 0 | CC54: 0 | CD54: 0 | CE54: 0 | CF54: 0 | CG54: 0 | CH54: 0 | CI54: 0 | CJ54: 0 | CK54: 0 | CL54: 0 | CM54: 0 | CN54: 0 | CO54: 0 | CP54: 0 | CQ54: 0 | CR54: 0 | CS54: 0 | CT54: 0 | CU54: 0 | CV54: 0 | CW54: 0 | CX54: 0 | CY54: 0
C55: 4500 | D55: 0 | E55: 0 | F55: 0 | G55: 0 | H55: 0 | I55: 0 | J55: 0 | K55: 0 | L55: 0 | M55: 0 | N55: 0 | O55: 0 | P55: 0 | Q55: 0 | R55: 0 | S55: 0 | T55: 0 | U55: 0 | V55: 0 | W55: 0 | X55: 0 | Y55: 0 | Z55: 0 | AA55: 0 | AB55: 0 | AC55: 0 | AD55: 0 | AE55: 0 | AF55: 0 | AG55: 0 | AH55: 0 | AI55: 0 | AJ55: 0 | AK55: 0 | AL55: 0 | AM55: 0 | AN55: 0 | AO55: 0 | AP55: 0 | AQ55: 0 | AR55: 0 | AS55: 0 | AT55: 0 | AU55: 0 | AV55: 0 | AW55: 0 | AX55: 0 | AY55: 0 | AZ55: 0 | BA55: 0 | BB55: 0 | BC55: 0 | BD55: 0 | BE55: 0 | BF55: 0 | BG55: 0 | BH55: 0 | BI55: 0 | BJ55: 0 | BK55: 0 | BL55: 0 | BM55: 0 | BN55: 0 | BO55: 0 | BP55: 0 | BQ55: 0 | BR55: 0 | BS55: 0 | BT55: 0 | BU55: 0 | BV55: 0 | BW55: 0 | BX55: 0 | BY55: 0 | BZ55: 0 | CA55: 0 | CB55: 0 | CC55: 0 | CD55: 0 | CE55: 0 | CF55: 0 | CG55: 0 | CH55: 0 | CI55: 0 | CJ55: 0 | CK55: 0 | CL55: 0 | CM55: 0 | CN55: 0 | CO55: 0 | CP55: 0 | CQ55: 0 | CR55: 0 | CS55: 0 | CT55: 0 | CU55: 0 | CV55: 0 | CW55: 0 | CX55: 0 | CY55: 0
C56: 5000 | D56: 0 | E56: 0 | F56: 0 | G56: 0 | H56: 0 | I56: 0 | J56: 0 | K56: 0 | L56: 0 | M56: 0 | N56: 0 | O56: 0 | P56: 0 | Q56: 0 | R56: 0 | S56: 0 | T56: 0 | U56: 0 | V56: 0 | W56: 0 | X56: 0 | Y56: 0 | Z56: 0 | AA56: 0 | AB56: 0 | AC56: 0 | AD56: 0 | AE56: 0 | AF56: 0 | AG56: 0 | AH56: 0 | AI56: 0 | AJ56: 0 | AK56: 0 | AL56: 0 | AM56: 0 | AN56: 0 | AO56: 0 | AP56: 0 | AQ56: 0 | AR56: 0 | AS56: 0 | AT56: 0 | AU56: 0 | AV56: 0 | AW56: 0 | AX56: 0 | AY56: 0 | AZ56: 0 | BA56: 0 | BB56: 0 | BC56: 0 | BD56: 0 | BE56: 0 | BF56: 0 | BG56: 0 | BH56: 0 | BI56: 0 | BJ56: 0 | BK56: 0 | BL56: 0 | BM56: 0 | BN56: 0 | BO56: 0 | BP56: 0 | BQ56: 0 | BR56: 0 | BS56: 0 | BT56: 0 | BU56: 0 | BV56: 0 | BW56: 0 | BX56: 0 | BY56: 0 | BZ56: 0 | CA56: 0 | CB56: 0 | CC56: 0 | CD56: 0 | CE56: 0 | CF56: 0 | CG56: 0 | CH56: 0 | CI56: 0 | CJ56: 0 | CK56: 0 | CL56: 0 | CM56: 0 | CN56: 0 | CO56: 0 | CP56: 0 | CQ56: 0 | CR56: 0 | CS56: 0 | CT56: 0 | CU56: 0 | CV56: 0 | CW56: 0 | CX56: 0 | CY56: 0
C57: 5500 | D57: 0 | E57: 0 | F57: 0 | G57: 0 | H57: 0 | I57: 0 | J57: 0 | K57: 0 | L57: 0 | M57: 0 | N57: 0 | O57: 0 | P57: 0 | Q57: 0 | R57: 0 | S57: 0 | T57: 0 | U57: 0 | V57: 0 | W57: 0 | X57: 0 | Y57: 0 | Z57: 0 | AA57: 0 | AB57: 0 | AC57: 0 | AD57: 0 | AE57: 0 | AF57: 0 | AG57: 0 | AH57: 0 | AI57: 0 | AJ57: 0 | AK57: 0 | AL57: 0 | AM57: 0 | AN57: 0 | AO57: 0 | AP57: 0 | AQ57: 0 | AR57: 0 | AS57: 0 | AT57: 0 | AU57: 0 | AV57: 0 | AW57: 0 | AX57: 0 | AY57: 0 | AZ57: 0 | BA57: 0 | BB57: 0 | BC57: 0 | BD57: 0 | BE57: 0 | BF57: 0 | BG57: 0 | BH57: 0 | BI57: 0 | BJ57: 0 | BK57: 0 | BL57: 0 | BM57: 0 | BN57: 0 | BO57: 0 | BP57: 0 | BQ57: 0 | BR57: 0 | BS57: 0 | BT57: 0 | BU57: 0 | BV57: 0 | BW57: 0 | BX57: 0 | BY57: 0 | BZ57: 0 | CA57: 0 | CB57: 0 | CC57: 0 | CD57: 0 | CE57: 0 | CF57: 0 | CG57: 0 | CH57: 0 | CI57: 0 | CJ57: 0 | CK57: 0 | CL57: 0 | CM57: 0 | CN57: 0 | CO57: 0 | CP57: 0 | CQ57: 0 | CR57: 0 | CS57: 0 | CT57: 0 | CU57: 0 | CV57: 0 | CW57: 0 | CX57: 0 | CY57: 0
C58: 6000 | D58: 0 | E58: 0 | F58: 0 | G58: 0 | H58: 0 | I58: 0 | J58: 0 | K58: 0 | L58: 0 | M58: 0 | N58: 0 | O58: 0 | P58: 0 | Q58: 0 | R58: 0 | S58: 0 | T58: 0 | U58: 0 | V58: 0 | W58: 0 | X58: 0 | Y58: 0 | Z58: 0 | AA58: 0 | AB58: 0 | AC58: 0 | AD58: 0 | AE58: 0 | AF58: 0 | AG58: 0 | AH58: 0 | AI58: 0 | AJ58: 0 | AK58: 0 | AL58: 0 | AM58: 0 | AN58: 0 | AO58: 0 | AP58: 0 | AQ58: 0 | AR58: 0 | AS58: 0 | AT58: 0 | AU58: 0 | AV58: 0 | AW58: 0 | AX58: 0 | AY58: 0 | AZ58: 0 | BA58: 0 | BB58: 0 | BC58: 0 | BD58: 0 | BE58: 0 | BF58: 0 | BG58: 0 | BH58: 0 | BI58: 0 | BJ58: 0 | BK58: 0 | BL58: 0 | BM58: 0 | BN58: 0 | BO58: 0 | BP58: 0 | BQ58: 0 | BR58: 0 | BS58: 0 | BT58: 0 | BU58: 0 | BV58: 0 | BW58: 0 | BX58: 0 | BY58: 0 | BZ58: 0 | CA58: 0 | CB58: 0 | CC58: 0 | CD58: 0 | CE58: 0 | CF58: 0 | CG58: 0 | CH58: 0 | CI58: 0 | CJ58: 0 | CK58: 0 | CL58: 0 | CM58: 0 | CN58: 0 | CO58: 0 | CP58: 0 | CQ58: 0 | CR58: 0 | CS58: 0 | CT58: 0 | CU58: 0 | CV58: 0 | CW58: 0 | CX58: 0 | CY58: 0
C59: 6500 | D59: 0 | E59: 0 | F59: 0 | G59: 0 | H59: 0 | I59: 0 | J59: 0 | K59: 0 | L59: 0 | M59: 0 | N59: 0 | O59: 0 | P59: 0 | Q59: 0 | R59: 0 | S59: 0 | T59: 0 | U59: 0 | V59: 0 | W59: 0 | X59: 0 | Y59: 0 | Z59: 0 | AA59: 0 | AB59: 0 | AC59: 0 | AD59: 0 | AE59: 0 | AF59: 0 | AG59: 0 | AH59: 0 | AI59: 0 | AJ59: 0 | AK59: 0 | AL59: 0 | AM59: 0 | AN59: 0 | AO59: 0 | AP59: 0 | AQ59: 0 | AR59: 0 | AS59: 0 | AT59: 0 | AU59: 0 | AV59: 0 | AW59: 0 | AX59: 0 | AY59: 0 | AZ59: 0 | BA59: 0 | BB59: 0 | BC59: 0 | BD59: 0 | BE59: 0 | BF59: 0 | BG59: 0 | BH59: 0 | BI59: 0 | BJ59: 0 | BK59: 0 | BL59: 0 | BM59: 0 | BN59: 0 | BO59: 0 | BP59: 0 | BQ59: 0 | BR59: 0 | BS59: 0 | BT59: 0 | BU59: 0 | BV59: 0 | BW59: 0 | BX59: 0 | BY59: 0 | BZ59: 0 | CA59: 0 | CB59: 0 | CC59: 0 | CD59: 0 | CE59: 0 | CF59: 0 | CG59: 0 | CH59: 0 | CI59: 0 | CJ59: 0 | CK59: 0 | CL59: 0 | CM59: 0 | CN59: 0 | CO59: 0 | CP59: 0 | CQ59: 0 | CR59: 0 | CS59: 0 | CT59: 0 | CU59: 0 | CV59: 0 | CW59: 0 | CX59: 0 | CY59: 0

Sheet KFZWOP|2 CONVERTER
G3: KFZWOP / 2 CONVERTER by MASTERJ v1.2
O9: SMOOTH MAP: | R9: ENABLE
G11: marius.guscius@vwklubas.lt
H14: <=== | I14: EDITABLE FIELDS!
B17: KFZWOP/2 MAP (INSERT WINOLS DATA HERE)
C18: LOAD RPM | D18: 480 | E18: 720 | F18: 1000 | G18: 1240 | H18: 1520 | I18: 1760 | J18: 2000 | K18: 2520 | L18: 3000 | M18: 3520 | N18: 4000 | O18: 4520 | P18: 5000 | Q18: 5720 | R18: 6000 | S18: 6720
C19: 10 | D19: 54 | E19: 55.5 | F19: 56.25 | G19: 57 | H19: 57.75 | I19: 57.75 | J19: 57.75 | K19: 57 | L19: 56.25 | M19: 56.25 | N19: 56.25 | O19: 56.25 | P19: 56.25 | Q19: 56.25 | R19: 55.5 | S19: 53.25
C20: 15 | D20: 51.75 | E20: 51.75 | F20: 51.75 | G20: 52.5 | H20: 53.25 | I20: 53.25 | J20: 53.25 | K20: 52.5 | L20: 51.75 | M20: 51.75 | N20: 52.5 | O20: 52.5 | P20: 53.25 | Q20: 53.25 | R20: 52.5 | S20: 50.25
C21: 20 | D21: 48.75 | E21: 48.75 | F21: 48.75 | G21: 49.5 | H21: 48 | I21: 48 | J21: 47.25 | K21: 46.5 | L21: 49.5 | M21: 51 | N21: 50.25 | O21: 48 | P21: 48 | Q21: 48.75 | R21: 49.5 | S21: 47.25
C22: 35 | D22: 35.25 | E22: 35.25 | F22: 35.25 | G22: 37.5 | H22: 38.25 | I22: 39 | J22: 39.75 | K22: 39 | L22: 47.25 | M22: 45.75 | N22: 41.25 | O22: 40.5 | P22: 41.25 | Q22: 44.25 | R22: 44.25 | S22: 43.5
C23: 50 | D23: 31.5 | E23: 31.5 | F23: 31.5 | G23: 33 | H23: 33 | I23: 34.5 | J23: 36 | K23: 36 | L23: 44.25 | M23: 42 | N23: 37.5 | O23: 36 | P23: 36.75 | Q23: 40.5 | R23: 41.25 | S23: 42
C24: 65 | D24: 27 | E24: 27 | F24: 27 | G24: 30.75 | H24: 30.75 | I24: 33 | J24: 33.75 | K24: 33.75 | L24: 41.25 | M24: 37.5 | N24: 35.25 | O24: 35.25 | P24: 36.75 | Q24: 39 | R24: 40.5 | S24: 41.25
C25: 80 | D25: 24 | E25: 24 | F25: 24 | G25: 27 | H25: 28.5 | I25: 30.75 | J25: 31.5 | K25: 32.25 | L25: 38.25 | M25: 36 | N25: 34.5 | O25: 33.75 | P25: 35.25 | Q25: 39 | R25: 39.75 | S25: 40.5
C26: 100 | D26: 21.75 | E26: 21.75 | F26: 21.75 | G26: 24.75 | H26: 27 | I26: 29.25 | J26: 29.25 | K26: 30 | L26: 36 | M26: 34.5 | N26: 33.75 | O26: 34.5 | P26: 35.25 | Q26: 39 | R26: 39.75 | S26: 39
C27: 120 | D27: 18.75 | E27: 18.75 | F27: 18.75 | G27: 20.25 | H27: 21.75 | I27: 27 | J27: 28.5 | K27: 29.25 | L27: 34.5 | M27: 34.5 | N27: 33.75 | O27: 34.5 | P27: 36 | Q27: 38.25 | R27: 39 | S27: 37.5
C28: 131 | D28: 17.25 | E28: 17.25 | F28: 17.25 | G28: 18.75 | H28: 20.25 | I28: 24 | J28: 27.75 | K28: 29.25 | L28: 34.5 | M28: 34.5 | N28: 34.5 | O28: 33.75 | P28: 35.25 | Q28: 36 | R28: 37.5 | S28: 36
C29: 145 | D29: 14.25 | E29: 14.25 | F29: 14.25 | G29: 15.75 | H29: 18.75 | I29: 23.25 | J29: 27 | K29: 30 | L29: 33 | M29: 35.25 | N29: 35.25 | O29: 33.75 | P29: 33.75 | Q29: 34.5 | R29: 36 | S29: 36
B32: CONVERTED KFZWOP/2 MAP
C33: LOAD RPM | D33: =D18 -> 480 | E33: =E18 -> 720 | F33: 1000 | G33: 1240 | H33: 1520 | I33: 1760 | J33: 2000 | K33: 2520 | L33: 3000 | M33: 3520 | N33: 4000 | O33: 4520 | P33: 5000 | Q33: 5720 | R33: 6000 | S33: 6720
C34: 17 | D34: 50.25 | E34: 50.25 | F34: 50.25 | G34: 51 | H34: 51 | I34: 51 | J34: 51 | K34: 50.25 | L34: 51 | M34: 51.75 | N34: 51.75 | O34: 51 | P34: 51 | Q34: 51.75 | R34: 51 | S34: 48.75
C35: 27 | D35: 42.75 | E35: 42.75 | F35: 42.75 | G35: 44.25 | H35: 43.5 | I35: 43.5 | J35: 43.5 | K35: 42.75 | L35: 47.25 | M35: 48.75 | N35: 45.75 | O35: 44.25 | P35: 45 | Q35: 46.5 | R35: 47.25 | S35: 45.75
C36: 63 | D36: 33.75 | E36: 33.75 | F36: 33.75 | G36: 35.25 | H36: 34.5 | I36: 35.25 | J36: 35.25 | K36: 34.5 | L36: 37.5 | M36: 39 | N36: 36.75 | O36: 35.25 | P36: 36.75 | Q36: 39 | R36: 40.5 | S36: 41.25
C37: 76 | D37: 27 | E37: 27 | F37: 27 | G37: 27.75 | H37: 29.25 | I37: 31.5 | J37: 32.25 | K37: 33 | L37: 36 | M37: 36.75 | N37: 34.5 | O37: 34.5 | P37: 36 | Q37: 39 | R37: 39.75 | S37: 40.5
C38: 111 | D38: 21.75 | E38: 21.75 | F38: 21.75 | G38: 22.5 | H38: 24 | I38: 26.25 | J38: 28.5 | K38: 29.25 | L38: 32.25 | M38: 34.5 | N38: 33.75 | O38: 34.5 | P38: 36 | Q38: 38.25 | R38: 39 | S38: 38.25
C39: 134 | D39: 17.25 | E39: 17.25 | F39: 17.25 | G39: 18 | H39: 20.25 | I39: 21.75 | J39: 24 | K39: 26.25 | L39: 29.25 | M39: 32.25 | N39: 34.5 | O39: 33.75 | P39: 35.25 | Q39: 36 | R39: 37.5 | S39: 36
C40: 141 | D40: 16.5 | E40: 16.5 | F40: 16.5 | G40: 18 | H40: 19.5 | I40: 21.75 | J40: 24 | K40: 26.25 | L40: 28.5 | M40: 31.5 | N40: 34.5 | O40: 33.75 | P40: 34.5 | Q40: 35.25 | R40: 36.75 | S40: 36
C41: 148 | D41: 12.75 | E41: 12.75 | F41: 12.75 | G41: 14.25 | H41: 15.75 | I41: 17.25 | J41: 18.75 | K41: 21 | L41: 23.25 | M41: 25.5 | N41: 27.75 | O41: 30.75 | P41: 31.5 | Q41: 32.25 | R41: 33.75 | S41: 36
C42: 171 | D42: 10.5 | E42: 10.5 | F42: 10.5 | G42: 11.25 | H42: 12.75 | I42: 13.5 | J42: 15 | K42: 16.5 | L42: 18.75 | M42: 20.25 | N42: 22.5 | O42: 24.75 | P42: 27 | Q42: 29.25 | R42: 30.75 | S42: 33.75
C43: 181 | D43: 8.25 | E43: 8.25 | F43: 8.25 | G43: 9 | H43: 9.75 | I43: 11.25 | J43: 12 | K43: 13.5 | L43: 15 | M43: 16.5 | N43: 18 | O43: 19.5 | P43: 21.75 | Q43: 24 | R43: 26.25 | S43: 28.5
C44: 190 | D44: 6.75 | E44: 6.75 | F44: 6.75 | G44: 7.5 | H44: 8.25 | I44: 9 | J44: 9.75 | K44: 10.5 | L44: 12 | M44: 12.75 | N44: 14.25 | O44: 15.75 | P44: 17.25 | Q44: 18.75 | R44: 21 | S44: 23.25

Sheet LDRXN|LDRXNZK CALCULATOR
B3: KFMIRL MAP (INSERT WINOLS DATA HERE)
C4: RPM LOAD | D4: 3 | E4: 10 | F4: 13 | G4: 15 | H4: 20 | I4: 25 | J4: 28 | K4: 30 | L4: 40 | M4: 45 | N4: 50 | O4: 60 | P4: 65 | Q4: 70 | R4: 80 | S4: 85
C5: 440 | D5: 7.83 | E5: 16.64 | F5: 19.78 | G5: 22.92 | H5: 29.2 | I5: 35.49 | J5: 38.63 | K5: 41.79 | L5: 54.35 | M5: 61.92 | N5: 66.92 | O5: 79.5 | P5: 85.78 | Q5: 92.06 | R5: 104.65 | S5: 110.93 | W5: LDRXN / LDRXNZK CALCULATOR by MASTERJ v1.0
C6: 750 | D6: 7.83 | E6: 16.64 | F6: 19.78 | G6: 22.92 | H6: 29.2 | I6: 35.49 | J6: 38.63 | K6: 41.79 | L6: 54.35 | M6: 61.92 | N6: 66.92 | O6: 79.5 | P6: 85.78 | Q6: 92.06 | R6: 104.65 | S6: 110.93
C7: 950 | D7: 5.95 | E7: 15.35 | F7: 17.11 | G7: 22.08 | H7: 28.78 | I7: 35.51 | J7: 38.86 | K7: 42.21 | L7: 55.64 | M7: 62.27 | N7: 69.07 | O7: 82.53 | P7: 89.25 | Q7: 95.96 | R7: 109.39 | S7: 116.09
C8: 1250 | D8: 5.81 | E8: 14.93 | F8: 18.19 | G8: 21.42 | H8: 27.94 | I8: 34.45 | J8: 37.71 | K8: 40.97 | L8: 53.98 | M8: 61.5 | N8: 67.01 | O8: 80.02 | P8: 86.51 | Q8: 93.03 | R8: 106.06 | S8: 112.57
C9: 1450 | D9: 5.51 | E9: 14.7 | F9: 17.98 | G9: 21.26 | H9: 27.8 | I9: 34.36 | J9: 37.64 | K9: 40.92 | L9: 54.02 | M9: 60.63 | N9: 67.15 | O9: 80.25 | P9: 86.81 | Q9: 93.38 | R9: 106.48 | S9: 113.04
C10: 1700 | D10: 4.8 | E10: 14.13 | F10: 17.46 | G10: 20.79 | H10: 27.45 | I10: 34.13 | J10: 37.45 | K10: 40.78 | L10: 54.12 | M10: 60.63 | N10: 67.43 | O10: 80.77 | P10: 87.42 | Q10: 94.08 | R10: 107.42 | S10: 114.07
C11: 1850 | D11: 4.76 | E11: 14.11 | F11: 17.44 | G11: 20.77 | H11: 27.45 | I11: 34.1 | J11: 37.43 | K11: 40.78 | L11: 54.12 | M11: 62.37 | N11: 67.45 | O11: 80.79 | P11: 87.47 | Q11: 94.15 | R11: 107.49 | S11: 114.14
C12: 2400 | D12: 4.73 | E12: 13.97 | F12: 17.27 | G12: 20.58 | H12: 27.16 | I12: 33.75 | J12: 37.06 | K12: 40.36 | L12: 53.56 | M12: 60.49 | N12: 66.73 | O12: 79.92 | P12: 86.51 | Q12: 93.12 | R12: 106.31 | S12: 112.9
C13: 3100 | D13: 4.24 | E13: 13.52 | F13: 16.83 | G13: 20.13 | H13: 26.77 | I13: 33.38 | J13: 36.68 | K13: 40.01 | L13: 53.23 | M13: 60.59 | N13: 66.47 | O13: 79.71 | P13: 86.32 | Q13: 92.96 | R13: 106.2 | S13: 112.81 | W13: marius.guscius@vwklubas.lt
C14: 3750 | D14: 5.18 | E14: 14.11 | F14: 17.3 | G14: 20.48 | H14: 26.86 | I14: 33.26 | J14: 36.45 | K14: 39.63 | L14: 52.38 | M14: 60.77 | N14: 65.16 | O14: 77.93 | P14: 84.31 | Q14: 90.68 | R14: 103.46 | S14: 109.83
C15: 4250 | D15: 4.41 | E15: 13.38 | F15: 16.59 | G15: 19.81 | H15: 26.23 | I15: 32.65 | J15: 35.86 | K15: 39.07 | L15: 51.89 | M15: 60.8 | N15: 64.74 | O15: 77.58 | P15: 84 | Q15: 90.4 | R15: 103.24 | S15: 109.67
C16: 4800 | D16: 4.69 | E16: 13.43 | F16: 16.55 | G16: 19.66 | H16: 25.92 | I16: 32.16 | J16: 35.27 | K16: 38.39 | L16: 50.88 | M16: 60.14 | N16: 63.38 | O16: 75.87 | P16: 82.1 | Q16: 88.34 | R16: 100.83 | S16: 107.06 | X16: <=== | Y16: EDITABLE FIELDS!
C17: 5600 | D17: 4.38 | E17: 12.96 | F17: 16.03 | G17: 19.1 | H17: 25.22 | I17: 31.01 | J17: 34.34 | K17: 37.48 | L17: 49.76 | M17: 59.86 | N17: 62.02 | O17: 74.28 | P17: 80.39 | Q17: 86.53 | R17: 98.79 | S17: 104.93
C18: 6000 | D18: 1.62 | E18: 10.97 | F18: 14.32 | G18: 17.65 | H18: 24.33 | I18: 31.01 | J18: 34.36 | K18: 37.69 | L18: 51.05 | M18: 58.76 | N18: 64.38 | O18: 77.74 | P18: 84.42 | Q18: 91.1 | R18: 104.46 | S18: 111.14
C19: 6750 | D19: 3.47 | E19: 11.91 | F19: 14.91 | G19: 17.91 | H19: 23.93 | I19: 29.93 | J19: 32.93 | K19: 35.95 | L19: 47.98 | M19: 53.32 | N19: 60 | O19: 72.02 | P19: 78.05 | Q19: 84.05 | R19: 96.07 | S19: 102.1
C20: 7400 | D20: 4.43 | E20: 12.49 | F20: 15.38 | G20: 18.23 | H20: 24 | I20: 29.77 | J20: 32.65 | K20: 35.53 | L20: 47.04 | M20: 57.12 | N20: 58.57 | O20: 70.08 | P20: 75.85 | Q20: 81.61 | R20: 93.12 | S20: 98.88
B23: LDRXN MAP
C24: RPM | D24: 440 | E24: 750 | F24: 950 | G24: 1250 | H24: 1450 | I24: 1700 | J24: 1850 | K24: 2400 | L24: 3100 | M24: 3750 | N24: 4250 | O24: 4800 | P24: 5600 | Q24: 6000 | R24: 6750 | S24: 7400
C25: LOAD | D25: =ROUNDUP(MAX(D36:D51)+1,0) -> 112 | E25: =ROUNDUP(MAX(E36:E51)+1,0) -> 112 | F25: 118 | G25: 114 | H25: 115 | I25: 116 | J25: 116 | K25: 114 | L25: 114 | M25: 111 | N25: 111 | O25: 109 | P25: 106 | Q25: 113 | R25: 104 | S25: 100
B28: LDRXNZK MAP
C29: RPM | D29: =D24 -> 440 | E29: =E24 -> 750 | F29: 950 | G29: 1250 | H29: 1450 | I29: 1700 | J29: 1850 | K29: 2400 | L29: 3100 | M29: 3750 | N29: 4250 | O29: 4800 | P29: 5600 | Q29: 6000 | R29: 6750 | S29: 7400
C30: LOAD | D30: =ROUNDUP(D25-D25/100*15, 0) -> 96 | E30: =ROUNDUP(E25-E25/100*15, 0) -> 96 | F30: 101 | G30: 97 | H30: 98 | I30: 99 | J30: 99 | K30: 97 | L30: 97 | M30: 95 | N30: 95 | O30: 93 | P30: 91 | Q30: 97 | R30: 89 | S30: 85
B34: LDRXN/LDRXNZK WEIGHT TABLE (HIDDEN)
C35: LOAD RPM | D35: =D24 -> 440 | E35: =E24 -> 750 | F35: 950 | G35: 1250 | H35: 1450 | I35: 1700 | J35: 1850 | K35: 2400 | L35: 3100 | M35: 3750 | N35: 4250 | O35: 4800 | P35: 5600 | Q35: 6000 | R35: 6750 | S35: 7400
C36: =D4 -> 3 | D36: 7.83 | E36: 7.83 | F36: 5.95 | G36: 5.81 | H36: 5.51 | I36: 4.8 | J36: 4.76 | K36: 4.73 | L36: 4.24 | M36: 5.18 | N36: 4.41 | O36: 4.69 | P36: 4.38 | Q36: 1.62 | R36: 3.47 | S36: 4.43
C37: =E4 -> 10 | D37: 16.64 | E37: 16.64 | F37: 15.35 | G37: 14.93 | H37: 14.7 | I37: 14.13 | J37: 14.11 | K37: 13.97 | L37: 13.52 | M37: 14.11 | N37: 13.38 | O37: 13.43 | P37: 12.96 | Q37: 10.97 | R37: 11.91 | S37: 12.49
C38: =F4 -> 13 | D38: 19.78 | E38: 19.78 | F38: 17.11 | G38: 18.19 | H38: 17.98 | I38: 17.46 | J38: 17.44 | K38: 17.27 | L38: 16.83 | M38: 17.3 | N38: 16.59 | O38: 16.55 | P38: 16.03 | Q38: 14.32 | R38: 14.91 | S38: 15.38
C39: =G4 -> 15 | D39: 22.92 | E39: 22.92 | F39: 22.08 | G39: 21.42 | H39: 21.26 | I39: 20.79 | J39: 20.77 | K39: 20.58 | L39: 20.13 | M39: 20.48 | N39: 19.81 | O39: 19.66 | P39: 19.1 | Q39: 17.65 | R39: 17.91 | S39: 18.23
C40: =H4 -> 20 | D40: 29.2 | E40: 29.2 | F40: 28.78 | G40: 27.94 | H40: 27.8 | I40: 27.45 | J40: 27.45 | K40: 27.16 | L40: 26.77 | M40: 26.86 | N40: 26.23 | O40: 25.92 | P40: 25.22 | Q40: 24.33 | R40: 23.93 | S40: 24
C41: =I4 -> 25 | D41: 35.49 | E41: 35.49 | F41: 35.51 | G41: 34.45 | H41: 34.36 | I41: 34.13 | J41: 34.1 | K41: 33.75 | L41: 33.38 | M41: 33.26 | N41: 32.65 | O41: 32.16 | P41: 31.01 | Q41: 31.01 | R41: 29.93 | S41: 29.77
C42: =J4 -> 28 | D42: 38.63 | E42: 38.63 | F42: 38.86 | G42: 37.71 | H42: 37.64 | I42: 37.45 | J42: 37.43 | K42: 37.06 | L42: 36.68 | M42: 36.45 | N42: 35.86 | O42: 35.27 | P42: 34.34 | Q42: 34.36 | R42: 32.93 | S42: 32.65
C43: =K4 -> 30 | D43: 41.79 | E43: 41.79 | F43: 42.21 | G43: 40.97 | H43: 40.92 | I43: 40.78 | J43: 40.78 | K43: 40.36 | L43: 40.01 | M43: 39.63 | N43: 39.07 | O43: 38.39 | P43: 37.48 | Q43: 37.69 | R43: 35.95 | S43: 35.53
C44: =L4 -> 40 | D44: 54.35 | E44: 54.35 | F44: 55.64 | G44: 53.98 | H44: 54.02 | I44: 54.12 | J44: 54.12 | K44: 53.56 | L44: 53.23 | M44: 52.38 | N44: 51.89 | O44: 50.88 | P44: 49.76 | Q44: 51.05 | R44: 47.98 | S44: 47.04
C45: =M4 -> 45 | D45: 61.92 | E45: 61.92 | F45: 62.27 | G45: 61.5 | H45: 60.63 | I45: 60.63 | J45: 62.37 | K45: 60.49 | L45: 60.59 | M45: 60.77 | N45: 60.8 | O45: 60.14 | P45: 59.86 | Q45: 58.76 | R45: 53.32 | S45: 57.12
C46: =N4 -> 50 | D46: 66.92 | E46: 66.92 | F46: 69.07 | G46: 67.01 | H46: 67.15 | I46: 67.43 | J46: 67.45 | K46: 66.73 | L46: 66.47 | M46: 65.16 | N46: 64.74 | O46: 63.38 | P46: 62.02 | Q46: 64.38 | R46: 60 | S46: 58.57
C47: =O4 -> 60 | D47: 79.5 | E47: 79.5 | F47: 82.53 | G47: 80.02 | H47: 80.25 | I47: 80.77 | J47: 80.79 | K47: 79.92 | L47: 79.71 | M47: 77.93 | N47: 77.58 | O47: 75.87 | P47: 74.28 | Q47: 77.74 | R47: 72.02 | S47: 70.08
C48: =P4 -> 65 | D48: 85.78 | E48: 85.78 | F48: 89.25 | G48: 86.51 | H48: 86.81 | I48: 87.42 | J48: 87.47 | K48: 86.51 | L48: 86.32 | M48: 84.31 | N48: 84 | O48: 82.1 | P48: 80.39 | Q48: 84.42 | R48: 78.05 | S48: 75.85
C49: =Q4 -> 70 | D49: 92.06 | E49: 92.06 | F49: 95.96 | G49: 93.03 | H49: 93.38 | I49: 94.08 | J49: 94.15 | K49: 93.12 | L49: 92.96 | M49: 90.68 | N49: 90.4 | O49: 88.34 | P49: 86.53 | Q49: 91.1 | R49: 84.05 | S49: 81.61
C50: =R4 -> 80 | D50: 104.65 | E50: 104.65 | F50: 109.39 | G50: 106.06 | H50: 106.48 | I50: 107.42 | J50: 107.49 | K50: 106.31 | L50: 106.2 | M50: 103.46 | N50: 103.24 | O50: 100.83 | P50: 98.79 | Q50: 104.46 | R50: 96.07 | S50: 93.12
C51: =S4 -> 85 | D51: 110.93 | E51: 110.93 | F51: 116.09 | G51: 112.57 | H51: 113.04 | I51: 114.07 | J51: 114.14 | K51: 112.9 | L51: 112.81 | M51: 109.83 | N51: 109.67 | O51: 107.06 | P51: 104.93 | Q51: 111.14 | R51: 102.1 | S51: 98.88

Sheet ANTILAG|LAUNCH CONTROL MODDER
C3: ANTILAG/LAUNCH CONTROL MODDER by MASTERJ (function by setzi62) v1.1a | U3: variable: | V3: address: | Y3: bitmask: | AB3: decoded: | AF3: MAP: | AI3: address: | AL3: size:
U4: tsrldyn | V4: 0x380BA4 | AE4: SpeedThreshold | AI4: 0x017400 | AL4: 2byte
U5: b_kuppl | V5: 0x00FD4A | Y5: 0x200 | AB5: 9 | AE5: LaunchRPM | AI5: 0x017402 | AL5: 2byte
U6: vfil_w | V6: 0x381CB8 | AE6: IgnitionCutDuration | AI6: 0x017404 | AL6: 2byte
U7: nmot_w | V7: 0x00F89E | AE7: RPMThreshold | AI7: 0x017406 | AL7: 2byte
U8: wped | V8: 0x3809A8 | AE8: AccPedalThreshold | AI8: 0x017408 | AL8: 1byte
U9: b_brems | V9: 0x00FD4A | Y9: 0x1000 | AB9: 12 | AE9: FTOMN | AI9: 0x01A61A
U10: NLS COUNT | V10: 0x384FF0 | AE10: MAIN FUNCTION | AI10: 0x0A6860
C11: marius.guscius@vwklubas.lt
V12: 4 bytes before last "D7 40 06 02 03 F8": | AD12: modified 4 bytes before last "D7 40 06 02 03 F8":
V13: F3 | W13: F8 | X13: 9F | Y13: 89 | AD13: DA | AE13: 8A | AF13: 60 | AG13: 68
I14: <=== | K14: EDITABLE FIELDS!
C17: ORIGINAL FUNCTION | V17: MODIFIED FUNCTION
C18: 0 | D18: 1 | E18: 2 | F18: 3 | G18: 4 | H18: 5 | I18: 6 | J18: 7 | K18: 8 | L18: 9 | M18: A | N18: B | O18: C | P18: D | Q18: E | R18: F | V18: 0 | W18: 1 | X18: 2 | Y18: 3 | Z18: 4 | AA18: 5 | AB18: 6 | AC18: 7 | AD18: 8 | AE18: 9 | AF18: A | AG18: B | AH18: C | AI18: D | AJ18: E | AK18: F
B19: 1 | C19: 9A | D19: 2B | E19: 13 | F19: 80 | G19: F2 | H19: F4 | I19: 40 | J19: 8E | K19: D7 | L19: 00 | M19: 81 | N19: 00 | O19: F2 | P19: F9 | Q19: 00 | R19: 7E | U19: 1 | V19: 9A | W19: 25 | X19: 13 | Y19: 90 | Z19: F2 | AA19: F4 | AB19: B8 | AC19: 9C | AD19: D7 | AE19: 00 | AF19: 81 | AG19: 00 | AH19: F2 | AI19: F9 | AJ19: 00 | AK19: 74
B20: 2 | C20: 40 | D20: 49 | E20: 9D | F20: 0B | G20: F2 | H20: F4 | I20: 7A | J20: F8 | K20: D7 | L20: 00 | M20: 81 | N20: 00 | O20: F2 | P20: F9 | Q20: 02 | R20: 7E | U20: 2 | V20: 40 | W20: 49 | X20: 9D | Y20: 0B | Z20: F2 | AA20: F4 | AB20: 9E | AC20: F8 | AD20: D7 | AE20: 00 | AF20: 81 | AG20: 00 | AH20: F2 | AI20: F9 | AJ20: 02 | AK20: 74
B21: 3 | C21: 40 | D21: 49 | E21: FD | F21: 03 | G21: F7 | H21: 8E | I21: AC | J21: 8D | K21: 0D | L21: 2F | M21: 9A | N21: 2B | O21: 29 | P21: 80 | Q21: 8A | R21: 2B | U21: 3 | V21: 40 | W21: 49 | X21: FD | Y21: 03 | Z21: F7 | AA21: 8E | AB21: A4 | AC21: 8B | AD21: 0D | AE21: 2F | AF21: 9A | AG21: 25 | AH21: 29 | AI21: 90 | AJ21: 8A | AK21: 25
B22: 4 | C22: 22 | D22: 60 | E22: F2 | F22: F4 | G22: 7A | H22: F8 | I22: D7 | J22: 00 | K22: 81 | L22: 00 | M22: F2 | N22: F9 | O22: 06 | P22: 7E | Q22: 40 | R22: 49 | U22: 4 | V22: 22 | W22: C0 | X22: F2 | Y22: F4 | Z22: 9E | AA22: F8 | AB22: D7 | AC22: 00 | AD22: 81 | AE22: 00 | AF22: F2 | AG22: F9 | AH22: 06 | AI22: 74 | AJ22: 40 | AK22: 49
B23: 5 | C23: FD | D23: 1A | E23: C2 | F23: F4 | G23: 02 | H23: 8B | I23: D7 | J23: 00 | K23: 81 | L23: 00 | M23: C2 | N23: F9 | O23: 08 | P23: 7E | Q23: 40 | R23: 49 | U23: 5 | V23: FD | W23: 1A | X23: C2 | Y23: F4 | Z23: A8 | AA23: 89 | AB23: D7 | AC23: 00 | AD23: 81 | AE23: 00 | AF23: C2 | AG23: F9 | AH23: 08 | AI23: 74 | AJ23: 40 | AK23: 49
B24: 6 | C24: FD | D24: 12 | E24: D7 | F24: 00 | G24: 38 | H24: 00 | I24: F2 | J24: F4 | K24: F0 | L24: 4F | M24: D7 | N24: 00 | O24: 81 | P24: 00 | Q24: F2 | R24: F9 | U24: 6 | V24: FD | W24: 12 | X24: D7 | Y24: 00 | Z24: 38 | AA24: 00 | AB24: F2 | AC24: F4 | AD24: F0 | AE24: 4F | AF24: D7 | AG24: 00 | AH24: 81 | AI24: 00 | AJ24: F2 | AK24: F9
B25: 7 | C25: 04 | D25: 7E | E25: 40 | F25: 49 | G25: 9D | H25: 11 | I25: F7 | J25: 8E | K25: AC | L25: 80 | M25: 08 | N25: 41 | O25: D7 | P25: 00 | Q25: 38 | R25: 00 | U25: 7 | V25: 04 | W25: 74 | X25: 40 | Y25: 49 | Z25: 9D | AA25: 11 | AB25: F7 | AC25: 8E | AD25: A4 | AE25: 8B | AF25: 08 | AG25: 41 | AH25: D7 | AI25: 00 | AJ25: 38 | AK25: 00
B26: 8 | C26: F7 | D26: F8 | E26: F0 | F26: 4F | G26: 0D | H26: 09 | I26: D7 | J26: 00 | K26: 38 | L26: 00 | M26: F6 | N26: 8F | O26: F0 | P26: 4F | Q26: 0D | R26: 04 | U26: 8 | V26: F7 | W26: F8 | X26: F0 | Y26: 4F | Z26: 0D | AA26: 09 | AB26: D7 | AC26: 00 | AD26: 38 | AE26: 00 | AF26: F6 | AG26: 8F | AH26: F0 | AI26: 4F | AJ26: 0D | AK26: 04
B27: 9 | C27: D7 | D27: 00 | E27: 38 | F27: 00 | G27: F6 | H27: 8E | I27: F0 | J27: 4F | K27: F3 | L27: F8 | M27: F3 | N27: 8A | O27: DB | P27: 00 | Q27: FF | R27: FF | U27: 9 | V27: D7 | W27: 00 | X27: 38 | Y27: 00 | Z27: F6 | AA27: 8E | AB27: F0 | AC27: 4F | AD27: F3 | AE27: F8 | AF27: 9F | AG27: 89 | AH27: DB | AI27: 00 | AJ27: FF | AK27: FF
